Cogmind - Beta 16.1 @@@ ROGUE MODE // 2026.02.20 @ 14:22:59 Player: the Result: Destroyed by H-88 Terminator with Heavy Machine Gun Performance ------------- Evolutions (9) 4500 Regions Visited (30) 6000 Robots Destroyed (266) 1330 Value Destroyed (8810) 8810 Prototype IDs (116) 2320 Alien Tech Used (2) 400 Bonus (18425) 18425 TOTAL SCORE: 41785 Bonus ------- High Alert Combat Kills 1115 Follower Combat Kills 14000 Hunted by Unchained 500 Network Hubs Disabled 800 Met Imprinter 300 Was Imprinted 300 Met Zhirov 300 MAIN.C Attacked Warlord 500 Warlord Defense Kills 220 Built Enhanced Grunts 300 A7 Reached Mainframe 300 Met R17 at Cetus 500 Friendly Fire -710 Cogmind --------- Core Integrity 0/1600 Matter 18/300 Energy 94/100 System Corruption 21% Temperature Cool (0) Movement Core (50) Location -1/Command Parts ------- > --- POWER (4) -------- (None) > --- PROPULSION (6) --- (None) > --- UTILITY (8) ------ Ghost Barrier > --- WEAPON (7) ------- (None) > --- INVENTORY (5) ---- Advanced Sensor Array EMDS Perforator Peak State ------------ > --- POWER ------------ Particle Reactor Particle Reactor Vortex Chain Reactor > --- PROPULSION ------- Biometal Heavy Treads Biometal Heavy Treads Advanced Heavy Siege Treads > --- UTILITY ---------- Experimental Cooling System Huge Storage Unit Improved Matter Compressor Gravity Neutralizer Advanced Signal Interpreter Experimental Cloaking Device Advanced Powered Armor Advanced Force Field > --- WEAPON ----------- Improved Potential Cannon 1B-0RG's Assimilator > --- INVENTORY -------- Biometal Heavy Treads Biometal Heavy Treads Biometal Heavy Treads Experimental Energy Well Matter Compressor Advanced Sensor Array Advanced Powered Armor Advanced Powered Armor Advanced Force Field Advanced Point Defense System Advanced Hacking Suite Advanced Hacking Suite System Mapper Ghost Barrier Long-range Tractor Beam EMDS Enhanced Nova Cannon Perforator Advanced Remote Datajack [Rating: 254] Favorites ----------- Power Particle Reactor Engine Cooled Ion Engine Power Core Enhanced Nuclear Core Reactor Particle Reactor Propulsion Centrium Wheel Treads Light Treads Leg Arachnoskeleton Wheel Centrium Wheel Hover Unit Antigrav System Utility Advanced Signal Interpreter Device Advanced Sensor Array Storage Huge Storage Unit Processor Advanced Signal Interpreter Hackware Hacking Suite Protection Improved Medium Armor Plating Weapon 1B-0RG's Assimilator Energy Gun Storm Laser Energy Cannon Enhanced Nova Cannon Ballistic Gun Enhanced Autogun Ballistic Cannon Light Cannon Launcher Missile Launcher Special Weapon Remote Datajack Slashing Weapon Phasing Sabre Special Melee Weapon 1B-0RG's Assimilator Build | -11 -10 -10 -8 -8 -7 -7 -7 -7 -6 -6 -6 -6 -6 -6 -5 -5 -5 -5 -4 -4 -4 -4 -4 -3 -3 -3 -2 -2 -1 -1 ------- Run | Yrd Mat Sub Mat Sto Fac Low Low Zio Pro Fac Ext Cet Arc Hub Fac Upp Upp Zhi Pro Fac Upp Upp War Pro Res Arm Res Tes Acc Com Slots Evolved 18 | . . . 4 . 2 . . . . 2 . . . . 2 . . . . 2 . . . . 2 . 2 . 2 . Power 3 | . . . 1 . . . . . . . . . . . . . . . . . . . . . 1 . . . 1 . Propulsion 4 | . . . 1 . . . . . . . . . . . 1 . . . . 1 . . . . . . 1 . . . Utility 6 | . . . 1 . 1 . . . . . . . . . 1 . . . . 1 . . . . 1 . 1 . . . Weapon 5 | . . . 1 . 1 . . . . 2 . . . . . . . . . . . . . . . . . . 1 . Parts Attached 249 | 7 11 14 33 18 17 1 5 3 7 18 6 5 . 12 6 1 . 4 . 10 1 1 11 . 5 8 5 8 11 21 Power 44 | 1 1 3 6 4 3 . . . 2 5 1 1 . 2 . . . 1 . 1 . . 2 . 1 1 . . 3 6 Engine 16 | 1 1 3 2 4 2 . . . 1 2 . . . . . . . . . . . . . . . . . . . . Core 8 | . . . 4 . 1 . . . 1 2 . . . . . . . . . . . . . . . . . . . . Reactor 20 | . . . . . . . . . . 1 1 1 . 2 . . . 1 . 1 . . 2 . 1 1 . . 3 6 Propulsion 50 | 2 1 2 10 4 4 . . . 1 5 . . . 3 1 . . . . 5 . . . . 1 2 1 . 1 7 Treads 22 | 2 1 2 10 . . . . . . . . . . . . . . . . . . . . . . 2 1 . 1 3 Leg 12 | . . . . 4 4 . . . 1 2 . . . 1 . . . . . . . . . . . . . . . . Wheel 12 | . . . . . . . . . . 3 . . . 2 1 . . . . 5 . . . . 1 . . . . . Hover 4 | . . . . . . . . . . . . . . . . . . . . . . . . . . . . . . 4 Flight . | . . . . . . . . . . . . . . . . . . . . . . . . . . . . . . . Utility 80 | 2 2 3 1 4 10 . 2 . 1 5 1 2 . 5 4 1 . 3 . 3 1 1 7 . 3 4 2 4 3 6 Device 39 | 1 1 . . 2 2 . 1 . 1 3 1 . . 3 2 1 . . . 3 1 1 5 . 1 2 1 2 3 2 Storage 11 | 1 1 1 . . 1 . . . . . . . . 1 2 . . 1 . . . . . . . . . 2 . 1 Processor 3 | . . . . . 1 . . . . 1 . . . . . . . . . . . . 1 . . . . . . . Hackware 4 | . . . 1 1 1 . . . . . . . . . . . . . . . . . . . . . . . . 1 Protection 23 | . . 2 . 1 5 . 1 . . 1 . 2 . 1 . . . 2 . . . . 1 . 2 2 1 . . 2 Artifact . | . . . . . . . . . . . . . . . . . . . . . . . . . . . . . . . Weapon 75 | 2 7 6 16 6 . 1 3 3 3 3 4 2 . 2 1 . . . . 1 . . 2 . . 1 2 4 4 2 Energy Gun 12 | 1 . . 4 1 . . . 1 3 1 . 1 . . . . . . . . . . . . . . . . . . Energy Cannon 27 | . 1 2 4 1 . 1 3 . . 1 . . . 2 . . . . . 1 . . 2 . . 1 1 4 2 1 Ballistic Gun 15 | 1 . 3 6 3 . . . . . . . 1 . . . . . . . . . . . . . . . . 1 . Ballistic Cannon 5 | . 1 1 . . . . . . . . 1 . . . 1 . . . . . . . . . . . . . 1 . Launcher 8 | . 4 . 1 1 . . . . . . 2 . . . . . . . . . . . . . . . . . . . Special Weapon 4 | . 1 . . . . . . 1 . . 1 . . . . . . . . . . . . . . . . . . 1 Impact Weapon . | . . . . . . . . . . . . . . . . . . . . . . . . . . . . . . . Slashing Weapon 2 | . . . 1 . . . . 1 . . . . . . . . . . . . . . . . . . . . . . Piercing Weapon . | . . . . . . . . . . . . . . . . . . . . . . . . . . . . . . . Special Melee Weapon 2 | . . . . . . . . . . 1 . . . . . . . . . . . . . . . . 1 . . . Unidentified Prototypes 46 | . . . 3 5 1 . . 2 . 6 1 3 . 3 1 1 . 4 . 1 . . 5 . 1 2 1 4 1 1 Corrupted Parts 2 | . . . . . . . . . . . . . . 1 . . . . . . . . 1 . . . . . . . System Corruption 14 | . . . . . . . . . . . . . . 4 . . . . . . . . 10 . . . . . . . Parts Lost 35 | . . 6 2 . . . . . . . . . . 1 . . . . . . . . . . 3 . . . 1 22 Power 7 | . . 1 1 . . . . . . . . . . . . . . . . . . . . . . . . . . 5 Propulsion 11 | . . 2 . . . . . . . . . . . 1 . . . . . . . . . . . . . . . 8 Utility 12 | . . 1 1 . . . . . . . . . . . . . . . . . . . . . 2 . . . 1 7 Weapon 5 | . . 2 . . . . . . . . . . . . . . . . . . . . . . 1 . . . . 2 Highest Loss Streak 8 | . . 6 1 . . . . . . . . . . 1 . . . . . . . . . . 3 . . . 1 8 To Critical Strikes . | . . . . . . . . . . . . . . . . . . . . . . . . . . . . . . . Average Backups 16 | 1 12 12 9 9 15 16 15 14 14 17 18 18 17 17 17 21 22 22 23 21 22 22 20 22 20 19 16 19 18 17 Power 1 | . 1 . . . 1 1 1 1 1 1 2 2 2 2 2 2 2 2 2 2 2 2 1 2 2 1 1 1 . . Propulsion 1 | . 3 2 1 . . . . 1 1 1 3 3 3 2 2 2 2 2 2 1 1 1 . 1 . 3 2 2 2 1 Utility 8 | . 4 4 3 3 5 5 5 6 5 9 9 8 7 8 9 12 13 13 13 12 12 12 11 13 12 10 9 11 11 11 Weapon 4 | . 2 4 4 4 7 9 8 5 5 3 2 4 4 2 2 3 3 3 3 3 4 4 4 4 3 3 3 4 3 2 Tool/Special . | . . . . . . . . . . . . . . . . . . . . . . . . . . . . . . . Unused Backups 60 | . 2 9 11 1 7 . 2 . . 6 3 1 . 1 1 . . . . 2 . . 1 1 . 5 . . 1 6 Power 4 | . . . . . 1 . . . . 1 . . . . . . . . . . . . . . . . . . . 2 Propulsion 5 | . . 1 . . . . . . . 1 . . . 1 . . . . . 1 . . . . . 1 . . . . Utility 34 | . 1 3 6 . 5 . 2 . . 4 2 1 . . . . . . . . . . 1 1 . 3 . . 1 4 Weapon 16 | . 1 5 5 1 1 . . . . . 1 . . . 1 . . . . 1 . . . . . . . . . . Tool/Special 1 | . . . . . . . . . . . . . . . . . . . . . . . . . . 1 . . . . Average Slot Usage (%) 73 | . 99 87 93 91 86 87 87 71 71 61 61 61 61 62 63 52 52 54 58 68 73 73 72 73 74 78 67 68 63 51 Engine 4 | . 14 13 4 14 8 6 6 6 2 2 5 9 11 10 . . . . . . . . . . . . . . . . Core 2 | . . . 7 2 3 6 6 6 9 8 1 . . . . . . . . . . . . . . . . . . . Reactor 4 | . . . . . . . . . . . 3 1 . 1 11 11 11 11 11 10 10 10 10 10 14 14 13 13 12 7 Treads 8 | . 27 28 26 18 . . . . . . . . . . . . . . . . . . . . . . 13 13 12 11 Leg 5 | . . . . 5 25 25 25 25 25 9 5 5 5 3 . . . . . . . . . . . . . . . . Wheel 6 | . . . . . . . . . . 7 11 11 11 11 10 11 11 11 11 21 26 26 26 26 22 22 . . . . Device 8 | . 14 2 8 6 5 6 5 6 6 5 4 1 5 7 14 5 5 5 5 9 10 10 9 10 11 12 19 20 17 8 Storage 6 | . 14 8 8 8 6 6 6 6 6 5 5 5 5 5 5 5 5 5 5 5 5 5 5 5 5 7 4 4 6 9 Processor 3 | . . . . . 3 6 6 6 6 5 5 5 5 5 5 5 5 5 5 5 5 5 5 5 4 4 4 4 4 3 Protection 3 | . . 5 . 1 6 6 6 6 5 4 5 8 5 3 1 . . 2 5 5 5 5 5 5 4 5 4 3 4 3 Energy Cannon 3 | . 8 14 4 11 . . 2 4 . . . . . . . . . . . . . . 1 3 . . 2 3 3 3 Ballistic Gun 4 | . 5 9 19 12 18 17 16 . . . . . . . . . . . . . . . . . . . . . . . Slashing Weapon 1 | . . . . . 4 . . . . 4 . . 3 5 4 4 5 4 2 4 4 4 3 1 2 3 1 . . . Special Melee Weapon 2 | . . . . . . . . . . 5 5 5 5 5 5 5 5 5 5 5 5 5 5 5 4 4 4 4 4 3 Peak Build Rating 254 | 7 8 20 38 60 80 80 81 90 92 139 138 144 144 142 137 148 148 148 137 167 166 166 176 173 189 197 222 228 254 243 Average Rating 115 | 5 7 12 31 45 75 79 79 87 88 134 135 141 142 132 134 147 148 140 136 155 163 163 166 170 183 191 215 224 233 201 On Entrance 123 | . 7 8 20 37 60 80 79 81 90 74 135 138 144 142 125 135 148 148 135 137 163 163 163 173 169 189 190 220 225 236 Avg Prop Armor Cover (%) 7 | . . . . 13 4 3 . . . 8 6 5 6 8 . . . . . 1 . . . . . . . . . 17 Naked Turns 5 | . . . . . . . . . . . . . . . . . . . . . . . . . . . . . . 5 Heaviest Build 257 | 11 30 61 70 57 80 80 98 93 92 143 155 155 130 138 178 173 171 179 179 194 180 189 214 209 230 240 240 241 255 257 Greatest Support 242 | 40 40 40 63 89 108 106 106 106 108 108 40 40 40 40 56 56 56 56 56 80 80 80 80 80 80 150 237 237 242 242 Greatest Overweight (x) 7 | . 1 7 1 . 1 . . . . 5 3 3 3 3 3 3 3 3 3 4 2 2 2 2 3 2 1 1 1 1 Average Overweight (x) 1 | . . . . . . . . . . 2 3 3 3 3 2 3 3 2 3 2 2 2 2 2 2 1 . . . . Largest Inventory Capacity 25 | 8 15 25 25 15 20 20 20 20 20 20 20 20 20 20 25 25 25 25 25 25 25 25 25 25 25 25 25 25 25 25 Average Capacity 20 | 7 14 14 15 15 19 20 20 20 20 20 20 20 20 20 21 25 25 25 25 25 25 25 25 25 25 25 25 25 25 24 Most Carried 25 | 5 15 25 24 15 20 20 20 20 20 20 20 20 20 20 25 25 25 25 25 25 25 25 25 25 25 25 24 25 25 25 Average Carried 20 | 1 12 12 15 14 19 20 19 19 19 18 19 19 19 19 20 24 25 24 25 24 25 25 23 25 23 24 20 24 24 21 Final Capacity 25 | 8 15 25 15 15 20 20 20 20 20 20 20 20 20 20 25 25 25 25 25 25 25 25 25 25 25 25 25 25 25 5 Final Carried 25 | 5 15 25 15 15 20 20 20 20 19 20 20 20 20 20 25 25 25 25 25 25 25 25 25 25 25 21 24 25 24 5 Class Distribution -------------------- 34% | Mutant 23% | Assassin 12% | Skirmisher 7% | Generator-Mutant 7% | Gunner 4% | Commander-Mutant 4% | Subdweller-Mutant 3% | Tank Dominant Class ---------------- Mutant | -10/Materials Mutant | -10/Subcaves Gunner | -8/Materials Gunner | -8/Storage Tank | -7/Factory Skirmisher | -7/Lower Caves Skirmisher | -7/Lower Caves Skirmisher | -7/Zion Skirmisher | -6/Proximity Caves Mutant | -6/Factory Mutant | -6/Extension Commander-Mutant | -6/Cetus Commander-Mutant | -6/Archives Mutant | -6/Hub_04(d) Assassin | -5/Factory Assassin | -5/Upper Caves Assassin | -5/Upper Caves Mutant | -5/Zhirov Mutant | -4/Proximity Caves Assassin | -4/Factory Assassin | -4/Upper Caves Assassin | -4/Upper Caves Assassin | -4/Warlord Assassin | -3/Proximity Caves Assassin | -3/Research Mutant | -3/Armory Mutant | -2/Research Mutant | -2/Testing Generator-Mutant | -1/Access Generator-Mutant | -1/Command Resources | -11 -10 -10 -8 -8 -7 -7 -7 -7 -6 -6 -6 -6 -6 -6 -5 -5 -5 -5 -4 -4 -4 -4 -4 -3 -3 -3 -2 -2 -1 -1 ----------- Run | Yrd Mat Sub Mat Sto Fac Low Low Zio Pro Fac Ext Cet Arc Hub Fac Upp Upp Zhi Pro Fac Upp Upp War Pro Res Arm Res Tes Acc Com Matter Collected 20242 | 277 249 616 1681 650 1182 321 360 40 188 995 807 447 1311 1818 497 281 . . 95 819 400 152 1255 224 349 1016 95 1529 1083 1505 Remotely 2350 | . . . . . . . . . . . . . . . . . . . . . . . 517 . . 478 . 86 260 1009 Salvage Created 11521 | 108 344 355 1694 1264 1358 191 207 . 943 528 752 . 313 166 262 127 . . . 168 85 129 118 . 281 126 492 355 589 566 Parts 601 | 13 39 21 109 72 73 12 6 . 27 24 30 . 28 12 8 4 . . . 12 . 3 7 . 8 8 24 10 26 25 Haulers Intercepted 21 | . 2 . 6 6 5 . . . . 2 . . . . . . . . . . . . . . . . . . . . Recyclers Shooed 12 | . . . 5 . 2 . . . . . 2 . . . 1 . . . . 1 . . . . . . . . 1 . Parts Field Recycled . | . . . . . . . . . . . . . . . . . . . . . . . . . . . . . . . Retrieved Matter . | . . . . . . . . . . . . . . . . . . . . . . . . . . . . . . . Parts Self-Destructed 145 | . . 7 . . . 11 7 . 31 . . . . . . 20 9 . 7 . 15 25 . 13 . . . . . . Prevented 63 | . . . . . . . . . 2 . . . . . . 3 4 . 1 . 21 21 . 11 . . . . . . Parts Restored . | . . . . . . . . . . . . . . . . . . . . . . . . . . . . . . . Kills | -11 -10 -10 -8 -8 -7 -7 -7 -7 -6 -6 -6 -6 -6 -6 -5 -5 -5 -5 -4 -4 -4 -4 -4 -3 -3 -3 -2 -2 -1 -1 ------- Run | Yrd Mat Sub Mat Sto Fac Low Low Zio Pro Fac Ext Cet Arc Hub Fac Upp Upp Zhi Pro Fac Upp Upp War Pro Res Arm Res Tes Acc Com Combat Hostiles Destroyed 150 | . 13 8 26 15 16 4 7 . 17 1 10 . . 1 . . . . . . 1 3 2 . . 2 5 3 4 12 Melee 3 | . . . . . . . . . . 1 . . . 1 . . . . . . . . . . . 1 . . . . Guns 51 | . . 4 17 2 9 2 2 . 15 . . . . . . . . . . . . . . . . . . . . . Cannons 37 | . 2 4 . 13 . . . . . . 4 . . . . . . . . . 1 . 2 . . 1 3 2 2 3 AOE 51 | . 11 . 9 . 7 2 5 . . . 6 . . . . . . . . . . 3 . . . . . . 1 7 Classes Destroyed 24 | 2 7 1 3 . 1 3 . . 1 1 . . . . . . . . . . . . 2 . . 1 1 . . 1 Worker 27 | . 3 . 6 5 2 . . . . 2 . . . 1 . . . . . 2 . . . . . . . 1 2 3 Builder 8 | . 1 . 4 1 1 . . . . 1 . . . . . . . . . . . . . . . . . . . . Tunneler 7 | 3 . . . . 1 . . . . . 2 . . 1 . . . . . . . . . . . . . . . . Hauler 21 | . 2 . 6 6 5 . . . . 2 . . . . . . . . . . . . . . . . . . . . Recycler 23 | 1 . . 4 . 7 . . . . 1 2 . . . 2 . . . . 1 . . . . 2 . . 1 1 1 Mechanic 1 | . . . . . . . . . . 1 . . . . . . . . . . . . . . . . . . . . Operator 12 | . 1 . 1 . . . . . . . . . 9 1 . . . . . . . . . . . . . . . . Turret 5 | . . . . . . . . . . . . . . . . . . . . . . . . . . . 1 . 4 . Watcher 7 | . 1 . 4 2 . . . . . . . . . . . . . . . . . . . . . . . . . . Swarmer 39 | . 9 . 10 . 9 . 1 . 2 . 3 . . . . . . . . . . 1 . . . . . . . 4 Grunt 45 | . 4 . 6 7 4 2 4 . 4 1 5 . . . . . . . . . . 1 . . . . 1 1 1 4 Brawler 4 | . . . . . . 1 . . 3 . . . . . . . . . . . . . . . . . . . . . Duelist 7 | . . . 1 . . . . . 4 . . . . . . . . . . . 1 1 . . . . . . . . Protector 1 | . . . . . . . . . . . . . . . . . . . . . . . 1 . . . . . . . Sentry 22 | . . . 8 8 1 . 1 . 1 . 1 . . 1 . . . . . . . . . . . . . . 1 . Demolisher 1 | . . . . . . . . . . . . . . . . . . . . . . . 1 . . . . . . . Specialist 1 | . . . . . . . . . . . . . . . . . . . . . . . . . . 1 . . . . Hunter 6 | . . . 1 . 1 . 1 . 1 . . . . . . . . . . . . . . . . . . 1 . 1 Programmer 9 | . . . . . 1 . . . 1 . . . . . . . . . . . . . . . . 1 3 1 1 1 Behemoth 5 | . . . . . . . . . 1 . . . . . . . . . . . . . . . . . 1 . 2 1 Alpha 7 1 | . . . . . . . . . . . . . . . . . . . . . . . . . . . . . . 1 Subdweller 8 | . . 8 . . . . . . . . . . . . . . . . . . . . . . . . . . . . Decomposer 8 | . . . . . . . 1 . . . . . . . . 7 . . . . . . . . . . . . . . Samaritan 1 | . . . . . . 1 . . . . . . . . . . . . . . . . . . . . . . . . Thug 4 | . . . . . . . . . . . 2 . . 1 . . . . . . . . 1 . . . . . . . Savage 1 | . . . . . . . . . . . 1 . . . . . . . . . . . . . . . . . . . Mutant 1 | . . . . . . 1 . . . . . . . . . . . . . . . . . . . . . . . . Best Kill Streak 10 | 4 6 2 10 6 5 3 3 . 6 2 3 . 3 3 1 . . . . 2 1 3 1 . 2 1 3 1 5 5 Combat Bots Only 6 | . 3 2 4 4 3 3 3 . 6 1 3 . . 1 . . . . . . 1 3 1 . . 1 3 1 1 5 Max Kills in Single Turn 4 | 1 3 1 2 1 3 1 2 . 2 1 2 . 1 4 1 1 . . . 1 1 1 1 . 1 1 1 1 2 3 Gunslinging . | . . . . . . . . . . . . . . . . . . . . . . . . . . . . . . . Exploded 3 | . 3 . 2 . 3 1 2 . . . 2 . . . . . . . . . . 1 . . . . . . 1 2 Melee 1 | . . . . . . . . . . 1 . . . 1 . . . . . . . . . . . 1 . . . . Uniques/NPCs Destroyed . | . . . . . . . . . . . . . . . . . . . . . . . . . . . . . . . Combat | -11 -10 -10 -8 -8 -7 -7 -7 -7 -6 -6 -6 -6 -6 -6 -5 -5 -5 -5 -4 -4 -4 -4 -4 -3 -3 -3 -2 -2 -1 -1 -------- Run | Yrd Mat Sub Mat Sto Fac Low Low Zio Pro Fac Ext Cet Arc Hub Fac Upp Upp Zhi Pro Fac Upp Upp War Pro Res Arm Res Tes Acc Com Hostile Shots Fired 1522 | . 19 60 136 36 70 9 12 . 49 84 35 23 . 67 13 . 5 . 1 6 . 9 35 3 120 24 25 40 167 474 Missed 398 | . 6 11 36 6 21 1 4 . 12 20 14 8 . 22 5 . 2 . . 2 . 4 11 1 38 10 11 9 37 107 Hits 1124 | . 13 49 100 30 49 8 8 . 37 64 21 15 . 45 8 . 3 . 1 4 . 5 24 2 82 14 14 31 130 367 Melee 9 | . . . . . . . . . 5 . . . . . . . . . . . . . 1 . . . . . . 3 Projectile 1115 | . 13 49 100 30 49 8 8 . 32 64 21 15 . 45 8 . 3 . 1 4 . 5 23 2 82 14 14 31 130 364 AOE 18 | . . . . . . . . . . . . . . . . . . . . 1 . . 14 . . . 1 . 2 . Critical Strikes 52 | . . 1 4 3 . . . . 1 2 . 1 . 2 . . . . . . . . 3 . 2 . 2 3 8 20 Part Disruptions 5 | . . . . . . . . . . . . . . . . . . . . 1 . . . . . . . 1 1 2 Damage Taken 21123 | . 183 1103 1264 427 569 115 118 . 817 906 294 353 14 982 144 . 33 . 14 142 25 136 695 39 1488 258 221 508 3192 7083 Core 3106 | . 18 132 115 42 63 18 10 . 62 191 74 8 . 75 8 . 24 . . 14 . 32 124 14 257 31 48 124 369 1253 Absorbed by Shields 3873 | . . . . . . . . . . . 34 102 14 173 49 . 25 . . 113 25 . 634 27 141 109 183 446 261 1537 Reduced by Siege Mode 144 | . . . . . . . . . . . . . . . . . . . . . . . . . . . . . . 144 Redirected to Shielding 61 | . . . . . 61 . . . . . . . . . . . . . . . . . . . . . . . . . Ignored by Resistances 153 | . . . . . . . 12 . . 77 7 57 . . . . . . . . . . . . . . . . . . Regen/Repaired (Parts) 2101 | . 89 . 128 125 . . . . . 105 95 100 . 272 20 25 . . . 9 . 22 105 14 136 57 4 54 457 284 Core Remaining (%) 76 | 100 . 40 . 71 . . . . 78 . . . . 59 . . . . 96 . . . . 84 . 72 . 88 . . Volleys Fired 768 | 7 39 51 111 59 68 26 22 1 27 11 74 5 . 2 3 5 . 3 . 11 5 7 17 4 6 2 30 52 60 60 Largest 4 | 2 2 2 3 3 3 3 4 1 4 1 1 1 . 1 1 1 . 1 . 1 1 1 1 1 1 1 1 1 1 1 Hottest 320 | 60 100 160 240 180 75 80 320 250 250 61 60 240 . 30 47 5 . 5 . 5 120 120 120 120 120 120 120 120 200 200 Shots Fired 1334 | 14 55 89 300 161 192 54 52 1 57 11 74 5 . 2 3 5 . 3 . 11 5 7 16 4 6 2 30 55 60 60 Gun 760 | 14 20 38 267 69 186 42 36 1 57 11 18 1 . . . . . . . . . . . . . . . . . . Cannon 463 | . 9 49 19 92 . 7 8 . . . 31 4 . 2 3 . . . . . 5 3 16 4 6 2 30 55 60 58 Launcher 61 | . 19 . 14 . 6 5 8 . . . 5 . . . . . . . . . . 4 . . . . . . . . Special 50 | . 7 2 . . . . . . . . 20 . . . . 5 . 3 . 11 . . . . . . . . . 2 Kinetic 717 | 7 16 64 257 69 186 42 36 . . . 31 4 . . 3 . . . . . . . . . . . . . 2 . Thermal 480 | 7 20 25 29 92 . 7 8 1 57 2 . 1 . 2 . . . . . . 5 3 9 4 6 1 30 55 58 58 Explosive 61 | . 19 . 14 . 6 5 8 . . . 5 . . . . . . . . . . 4 . . . . . . . . Electromagnetic . | . . . . . . . . . . . . . . . . . . . . . . . . . . . . . . . Entropic 8 | . . . . . . . . . . . . . . . . . . . . . . . 7 . . 1 . . . . Phasic 27 | . . . . . . . . . . 9 18 . . . . . . . . . . . . . . . . . . . Robot Hit Streak 18 | 7 6 7 18 14 13 5 7 . 17 12 16 1 . 1 2 2 . 3 . 6 8 3 4 6 . 1 6 12 8 15 Robot Miss Streak 7 | 1 1 2 5 4 6 2 2 . 7 1 5 3 . 1 1 4 . . . 1 1 . 2 1 2 . 1 1 3 3 Penetration Max 1 | . . . . . . . . . . . 1 . . . . . . . . . . . . . . . . . . . Secondary Targets 2 | . . 1 . . . . . . 1 . . . . . . . . . . . . . . . . . . . . . Max Gunslinging Chain 1 | . . 1 . . . . . . 1 . . . . . . . . . . . . . . . . . . . . . Capacitor 3 | . . . . . . . . . . . . . . . . . . . . . . . 3 . . . . . . . Shots Hit Robots 756 | 9 17 50 184 89 102 19 20 . 51 23 37 1 17 6 6 8 . 3 . 13 3 4 8 3 2 2 19 10 24 26 Core Hits 417 | 6 34 20 82 37 51 13 19 . 42 8 25 . 8 9 2 4 . . . 3 2 6 4 . 2 2 6 3 15 14 Critical Kills 19 | . . . . . 1 . . . . . 10 . . . . . . . . . . . . . . . 2 1 3 2 Critical Parts Destroyed 8 | . . . 1 . . 1 . . . . 6 . . . . . . . . . . . . . . . . . . . Critical Strikes 46 | . . 1 1 . 1 1 . . 3 3 20 1 . . . . . . . . . . 3 . . . 3 1 6 2 Burn 3 | . . . . . . . . . 3 . . . . . . . . . . . . . . . . . . . . . Meltdown 7 | . . . . . . . . . . . . . . . . . . . . . . . . . . . 2 1 2 2 Destroy 26 | . . . 1 . 1 1 . . . . 18 1 . . . . . . . . . . . . . . . . 4 . Blast 1 | . . 1 . . . . . . . . . . . . . . . . . . . . . . . . . . . . Sever 5 | . . . . . . . . . . 3 1 . . . . . . . . . . . . . . . 1 . . . Sunder 3 | . . . . . . . . . . . . . . . . . . . . . . . 3 . . . . . . . Intensify 1 | . . . . . . . . . . . 1 . . . . . . . . . . . . . . . . . . . Melee Attacks 214 | . . . 14 5 23 30 2 1 . 46 4 . 20 14 8 7 . . 1 10 1 3 . . 7 9 6 3 . . Impact . | . . . . . . . . . . . . . . . . . . . . . . . . . . . . . . . Slashing 208 | . . . 14 5 23 30 2 1 . 46 4 . 20 14 8 7 . . 1 10 1 3 . . 7 9 3 . . . Piercing . | . . . . . . . . . . . . . . . . . . . . . . . . . . . . . . . Sneak Attacks 58 | . . . 6 . 5 2 . . . 8 . . 11 . 4 7 . . . 4 . 1 . . 2 1 4 3 . . Combat Hostiles . | . . . . . . . . . . . . . . . . . . . . . . . . . . . . . . . Follow-up Attacks . | . . . . . . . . . . . . . . . . . . . . . . . . . . . . . . . Damage Inflicted 32080 | 102 1211 1116 4030 2062 2602 651 836 . 2188 1235 1575 42 1416 626 390 577 . . . 356 132 573 580 144 187 145 871 392 2197 5844 Guns 8510 | 102 134 484 2604 543 1614 302 291 . 2188 182 66 . . . . . . . . . . . . . . . . . . . Cannons 9078 | . 70 589 215 1453 . . . . . . 546 42 . 27 62 . . . . . 132 124 580 144 33 52 780 355 1315 2559 Explosions 8796 | . 1000 . 706 . 591 202 534 . . . 895 . . 416 . . . . . . . 347 . . . . . . 852 3253 Melee 5443 | . . . 491 . 397 147 . . . 1053 68 . 1416 183 328 577 . . . 356 . 102 . . 154 93 78 . . . Ramming 253 | . 7 43 14 66 . . 11 . . . . . . . . . . . . . . . . . . . 13 37 30 32 Kinetic 6789 | 34 101 716 2481 543 1614 302 291 . . . 546 42 . . 62 . . . . . . . . . . . . . 57 . Thermal 14256 | 68 103 357 338 1453 . . . . 2188 17 . . . 27 . . . . . . 132 124 163 144 33 52 780 355 2110 5812 Explosive 4275 | . 1000 . 706 . 591 202 534 . . . 895 . . . . . . . . . . 347 . . . . . . . . Electromagnetic 416 | . . . . . . . . . . . . . . 416 . . . . . . . . . . . . . . . . Impact . | . . . . . . . . . . . . . . . . . . . . . . . . . . . . . . . Slashing 5443 | . . . 491 . 397 147 . . . 1053 68 . 1416 183 328 577 . . . 356 . 102 . . 154 93 78 . . . Piercing . | . . . . . . . . . . . . . . . . . . . . . . . . . . . . . . . Entropic 417 | . . . . . . . . . . . . . . . . . . . . . . . 417 . . . . . . . Phasic 231 | . . . . . . . . . . 165 66 . . . . . . . . . . . . . . . . . . . Highest Corruption 21 | . . . . . . . . . 2 . . . . 13 . . . . . 2 2 . 10 1 1 3 2 10 5 21 Average Corruption 3 | . . . . . . . . . 2 . . . . 5 . . . . . 1 1 . 1 1 1 1 1 5 4 8 Corruption Purged 2 | . . . . . . . . . . . . . . . . . . . . . 2 . . . . . . . . . Corruption Blocked . | . . . . . . . . . . . . . . . . . . . . . . . . . . . . . . . Effects 207 | . . . . . . . . . 10 . . . . 22 . . . . . 6 14 . 3 5 . 7 1 42 55 42 Message Errors 64 | . . . . . . . . . 3 . . . . 9 . . . . . 2 4 . 1 . . 3 . 13 19 10 Matter Fused 33 | . . . . . . . . . 2 . . . . 5 . . . . . 1 3 . 1 1 . 1 . 6 9 4 Heat Flow Errors 28 | . . . . . . . . . 1 . . . . 1 . . . . . . 3 . . 1 . 2 1 5 5 9 Energy Discharges 28 | . . . . . . . . . 1 . . . . 4 . . . . . 2 1 . . . . . . 4 9 7 Parts Rejected 3 | . . . . . . . . . . . . . . . . . . . . . . . . . . . . 1 1 1 Data Loss (minor) 23 | . . . . . . . . . 3 . . . . 2 . . . . . 1 1 . . 2 . 1 . 6 4 3 Data Loss (major) 10 | . . . . . . . . . . . . . . 1 . . . . . . 2 . . . . . . 4 1 2 Misfires 6 | . . . . . . . . . . . . . . . . . . . . . . . . . . . . 3 2 1 Alerts 5 | . . . . . . . . . . . . . . . . . . . . . . . . 1 . . . . 3 1 Misdirections 3 | . . . . . . . . . . . . . . . . . . . . . . . . . . . . . . 3 Weapon Failures 4 | . . . . . . . . . . . . . . . . . . . . . . . 1 . . . . . 2 1 Overload Shots 1 | . . . . . . . . . . . . 1 . . . . . . . . . . . . . . . . . . Overflow Damage 2169 | . 35 . 84 13 93 68 . . . 115 10 . 412 8 63 236 . . . 60 . 18 12 . . . 56 12 126 748 Projectiles 353 | . . . 21 . . . . . . . 10 . . . . . . . . . . 4 12 . . . 56 . 51 199 Explosions 705 | . 35 . 38 . . . . . . . . . . 8 . . . . . . . . . . . . . . 75 549 Melee 1111 | . . . 25 13 93 68 . . . 115 . . 412 . 63 236 . . . 60 . 14 . . . . . 12 . . Knockbacks 9 | . 1 2 . 1 . . . . . . 2 . . . 1 . . . . . . . . . . . . 1 1 . Impact 3 | . . . . 1 . . . . . . . . . . . . . . . . . . . . . . . 1 1 . Kinetic 5 | . . 2 . . . . . . . . 2 . . . 1 . . . . . . . . . . . . . . . Secondary 1 | . 1 . . . . . . . . . . . . . . . . . . . . . . . . . . . . . Self-Inflicted Damage 327 | . 1 . 20 . . . . . . . 1 . . 109 . . . . . . . . . . . . . . 117 79 Shots 7 | . 1 . 1 . . . . . . . 1 . . 1 . . . . . . . . . . . . . . 2 1 Rammed 33 | . 1 19 4 2 . . . . . . . . . . . . . . . . . . . . 1 . 2 2 2 . Targets Rammed 38 | . 1 19 4 5 . . 1 . . . . . . . . . . . . . . . . . 1 . 2 2 2 1 Kicked 3 | . . . . 2 . . 1 . . . . . . . . . . . . . . . . . . . . . . . Crushed 2 | . . . . 1 . . . . . . . . . . . . . . . . . . . . . . . . . 1 Highest Temperature 596 | 40 102 260 324 397 327 190 300 164 404 328 200 200 . 273 10 . . . . . 283 276 240 220 324 266 51 234 233 596 Average Temperature 90 | 18 21 65 82 95 80 64 89 84 145 88 48 59 . 131 5 . . . . . 119 106 75 96 102 112 6 19 47 177 Received Heat Transfer 3148 | . 60 387 378 225 96 18 36 . 165 459 60 52 . 126 27 . . . . 10 . . 29 4 347 . 8 18 227 416 Effects 29 | . . . 2 2 1 . . . 3 1 . . . . . . . . . . . . . . 2 . . . . 18 Shutdowns 13 | . . . . 1 . . . . 3 . . . . . . . . . . . . . . . . . . . . 9 Energy Bleed 6 | . . . 1 . 1 . . . . . . . . . . . . . . . . . . . 2 . . . . 2 Interference 3 | . . . . . . . . . . . . . . . . . . . . . . . . . . . . . . 3 Matter Decay 1 | . . . . . . . . . . 1 . . . . . . . . . . . . . . . . . . . . Short Circuit 4 | . . . 1 1 . . . . . . . . . . . . . . . . . . . . . . . . . 2 Damage (minor) 1 | . . . . . . . . . . . . . . . . . . . . . . . . . . . . . . 1 Damage (core) 1 | . . . . . . . . . . . . . . . . . . . . . . . . . . . . . . 1 Siege Activations 1 | . . . . . . . . . . . . . . . . . . . . . . . . . . . . . . 1 Total Turns 16 | . . . . . . . . . . . . . . . . . . . . . . . . . . . . . . 16 Longest Duration 16 | . . . . . . . . . . . . . . . . . . . . . . . . . . . . . . 16 Martial Activations . | . . . . . . . . . . . . . . . . . . . . . . . . . . . . . . . Shielding Activations . | . . . . . . . . . . . . . . . . . . . . . . . . . . . . . . . Robots Disrupted . | . . . . . . . . . . . . . . . . . . . . . . . . . . . . . . . Combat Hostiles . | . . . . . . . . . . . . . . . . . . . . . . . . . . . . . . . Robots Corrupted 3 | . . . . 2 . . . . . . . . . . . . . . . . . . . . . . . 1 . . Combat Hostiles . | . . . . . . . . . . . . . . . . . . . . . . . . . . . . . . . Parts Fried 11 | . . . . 2 . . . . . . . . . 5 . . . . . . 1 . . . . . 1 2 . . Impact Corruptions 3 | . . . . 2 . . . . . . . . . . . . . . . . . . . . . . . 1 . . Robots Melted 9 | . . . . . . . . . 2 . . . . . . . . . . . . . . . . . 2 1 2 2 Combat Hostiles 8 | . . . . . . . . . 2 . . . . . . . . . . . . . . . . . 2 1 1 2 Parts Melted 38 | . . . . 3 . . . . 17 . . . . . . . . . . . . . . . . 1 7 2 4 4 Heat Transferred 14587 | 150 224 481 446 2331 . . . . 3805 37 . . . 37 . . . . . . 111 111 148 148 37 37 592 296 1780 3816 Parts Sabotaged . | . . . . . . . . . . . . . . . . . . . . . . . . . . . . . . . Parts Stolen . | . . . . . . . . . . . . . . . . . . . . . . . . . . . . . . . Parts Stripped . | . . . . . . . . . . . . . . . . . . . . . . . . . . . . . . . Power Chain Reactions . | . . . . . . . . . . . . . . . . . . . . . . . . . . . . . . . Alert | -11 -10 -10 -8 -8 -7 -7 -7 -7 -6 -6 -6 -6 -6 -6 -5 -5 -5 -5 -4 -4 -4 -4 -4 -3 -3 -3 -2 -2 -1 -1 ------- Run | Yrd Mat Sub Mat Sto Fac Low Low Zio Pro Fac Ext Cet Arc Hub Fac Upp Upp Zhi Pro Fac Upp Upp War Pro Res Arm Res Tes Acc Com Maximum Alert Level 5 | . 1 . 1 1 1 . . . . 2 3 2 1 4 4 . . . . 3 . . . . . 2 3 3 3 5 Low Security (%) 42 | 100 95 . 48 75 85 . . . . 54 41 . 83 24 . . . . . 19 . . . . 100 80 1 . . . Level 1 22 | . 4 . 51 24 14 . . . . 28 42 . 16 6 . . . . . 27 . . . . . 17 71 29 2 . Level 2 18 | . . . . . . . . . . 17 3 100 . 14 12 . . . . 34 . . . . . 2 24 64 47 26 Level 3 11 | . . . . . . . . . . . 11 . . 42 34 . . . . 18 . . . . . . 2 5 50 10 Level 4 5 | . . . . . . . . . . . . . . 12 52 . . . . . . . . . . . . . . 55 Level 5 . | . . . . . . . . . . . . . . . . . . . . . . . . . . . . . . 7 High Security . | . . . . . . . . . . . . . . . . . . . . . . . . . . . . . . . Max Security . | . . . . . . . . . . . . . . . . . . . . . . . . . . . . . . . Peak Influence 1691 | 15 217 . 342 243 232 . . . . 450 804 543 259 1403 1572 . . . . 882 . . . . 127 407 722 728 1059 1691 Initial 673 | . . . . 114 78 . . . . 74 182 434 194 9 673 . . . . . . . . . . 2 213 385 434 632 Average 378 | 2 114 . 208 156 110 . . . . 187 285 496 126 697 1068 . . . . 420 . . . . 40 156 363 454 729 1164 Influence Increases 20340 | 20 638 . 948 671 583 115 234 . 600 888 1196 289 280 2050 1173 247 435 . 166 1310 520 1052 591 182 299 738 795 1014 1439 1867 Destroy 0b10 Robot/C 8920 | . 260 . 520 320 320 60 180 . 440 380 500 120 80 700 400 120 200 . 80 420 220 540 360 140 120 340 360 380 600 760 Destroy 0b10 Robot/NC 840 | 20 40 . 125 70 80 . . . . 60 30 10 45 90 35 . . . . 50 . . 15 . 15 5 10 35 50 55 Destroy Leader 1816 | . 56 . 150 126 80 10 30 . 50 120 62 . . 182 96 10 30 . 10 106 40 60 . 10 32 102 102 46 170 136 Allied During Kill 5004 | . . . . 2 . . 24 . 95 98 474 130 125 803 416 117 205 . 76 559 245 452 216 32 62 203 188 97 221 164 Successful Hack 199 | . 49 . 30 16 24 . . . . 4 28 . . . . . . . . . . . . . . . 24 24 . . Select Force Hacks 30 | . 30 . . . . . . . . . . . . . . . . . . . . . . . . . . . . . Disable Machine 1020 | . 60 . 30 45 45 . . . . 150 30 15 30 135 150 . . . . 30 . . . . 15 45 15 75 75 75 Destroy Structure 2091 | . 143 . 78 17 34 . . . . 61 72 14 . 140 76 . . . . 130 . . . . 40 28 66 267 278 647 Partial Spotted 30 | . . . . . . . . . . . . . . . . . . . . . . . . . . . . . 30 . Lose Combat Pursuer 390 | . . . 15 75 . 45 . . 15 15 . . . . . . . . . 15 15 . . . 15 15 30 90 15 30 Influence Decreases 18703 | 20 529 109 676 770 571 300 234 . 482 632 794 580 737 703 976 1186 683 385 166 478 839 685 986 667 294 336 516 975 1175 1219 Entered New Map 5972 | . . 53 . 158 95 69 . . . 44 192 342 291 19 702 582 121 385 . . 309 99 880 485 . 3 194 301 291 357 Time Decay 10758 | 20 529 56 666 562 466 231 234 . 382 513 482 198 326 474 254 604 542 . 166 378 530 526 46 182 186 233 262 574 654 482 Lost Part 278 | . . . 10 . . . . . . . . . . 10 . . . . . . . . . . 28 . . . 10 220 Lost Ally 1695 | . . . . 50 10 . . . 100 75 120 40 120 200 20 . 20 . . 100 . 60 60 . 80 100 60 100 220 160 Squads Dispatched 94 | . 2 . 2 3 6 . . . 1 10 1 . . 12 3 . . . . 8 . 1 . . 6 2 7 5 15 10 Investigation 10 | . 2 . . . 1 . . . . 3 . . . . . . . . . 2 . . . . . . . . . 2 Extermination 29 | . . . . . 2 . . . . 4 . . . 2 1 . . . . 2 . . . . 1 1 2 4 5 5 Reinforcement 31 | . . . 2 . 3 . . . . 3 1 . . 6 . . . . . 3 . . . . 5 1 1 1 5 . Assault 14 | . . . . 2 . . . . 1 . . . . 1 1 . . . . . . 1 . . . . 1 . 4 3 Garrison 10 | . . . . 1 . . . . . . . . . 3 1 . . . . 1 . . . . . . 3 . 1 . Intercept . | . . . . . . . . . . . . . . . . . . . . . . . . . . . . . . . Searches Triggered . | . . . . . . . . . . . . . . . . . . . . . . . . . . . . . . . Unchained Authorized 2 | . . . . . . . . . . . . . . . . . . . . . . . . . . . 1 . 1 . Construction Impeded 9 | . . . . . 1 . . . . . 1 . . 3 . . . . . 2 . . . . 1 . . 1 . . Haulers Reinforced 3 | . . . . . 1 . . . . 1 . . . . . . . . . . . . . . 1 . . . . . Active Scanning Responses . | . . . . . . . . . . . . . . . . . . . . . . . . . . . . . . . Cargo Convoy Interrupts . | . . . . . . . . . . . . . . . . . . . . . . . . . . . . . . . Stealth | -11 -10 -10 -8 -8 -7 -7 -7 -7 -6 -6 -6 -6 -6 -6 -5 -5 -5 -5 -4 -4 -4 -4 -4 -3 -3 -3 -2 -2 -1 -1 --------- Run | Yrd Mat Sub Mat Sto Fac Low Low Zio Pro Fac Ext Cet Arc Hub Fac Upp Upp Zhi Pro Fac Upp Upp War Pro Res Arm Res Tes Acc Com Distress Signals 31 | . 2 . 4 1 2 . . . . 2 3 2 . 6 1 . . . . 1 . . . . 1 . 1 1 3 1 Communications Jammed . | . . . . . . . . . . . . . . . . . . . . . . . . . . . . . . . Distress Signals . | . . . . . . . . . . . . . . . . . . . . . . . . . . . . . . . Times Spotted 614 | . 23 8 43 18 22 7 7 . 20 25 26 10 12 35 18 6 9 . 4 18 10 21 74 4 22 19 20 30 42 61 Peak Tracking Total 17 | . 4 2 4 6 4 3 4 . 4 4 4 5 1 6 6 6 5 . 4 4 4 11 17 3 9 5 8 8 15 8 Tactical Retreats 16 | . . . 1 1 . 2 . . 1 1 . . . . . . . . . 1 1 . . . 1 1 1 1 2 2 Traps | -11 -10 -10 -8 -8 -7 -7 -7 -7 -6 -6 -6 -6 -6 -6 -5 -5 -5 -5 -4 -4 -4 -4 -4 -3 -3 -3 -2 -2 -1 -1 ------- Run | Yrd Mat Sub Mat Sto Fac Low Low Zio Pro Fac Ext Cet Arc Hub Fac Upp Upp Zhi Pro Fac Upp Upp War Pro Res Arm Res Tes Acc Com Traps Triggered 8 | . 3 1 1 . . . . . . . 1 . . . . . . . . . . . . . . . . . 2 . Indirectly . | . . . . . . . . . . . . . . . . . . . . . . . . . . . . . . . Trap Hack Attempts . | . . . . . . . . . . . . . . . . . . . . . . . . . . . . . . . Triggered . | . . . . . . . . . . . . . . . . . . . . . . . . . . . . . . . Disarmed . | . . . . . . . . . . . . . . . . . . . . . . . . . . . . . . . Reprogrammed . | . . . . . . . . . . . . . . . . . . . . . . . . . . . . . . . Reused . | . . . . . . . . . . . . . . . . . . . . . . . . . . . . . . . Traps Extracted . | . . . . . . . . . . . . . . . . . . . . . . . . . . . . . . . Installed 1 | . . 1 . . . . . . . . . . . . . . . . . . . . . . . . . . . . Triggered . | . . . . . . . . . . . . . . . . . . . . . . . . . . . . . . . Machines | -11 -10 -10 -8 -8 -7 -7 -7 -7 -6 -6 -6 -6 -6 -6 -5 -5 -5 -5 -4 -4 -4 -4 -4 -3 -3 -3 -2 -2 -1 -1 ---------- Run | Yrd Mat Sub Mat Sto Fac Low Low Zio Pro Fac Ext Cet Arc Hub Fac Upp Upp Zhi Pro Fac Upp Upp War Pro Res Arm Res Tes Acc Com Machines Disabled 74 | . 4 1 2 3 3 . . . . 10 4 1 2 9 10 . . . . 2 . 1 1 . 1 3 1 6 5 5 Max in Single Turn 5 | . 2 1 1 1 1 . . . . 1 1 1 . 5 1 . . . . 1 . . 1 . 1 1 . 1 1 1 Garrison Access 8 | . . . . 1 . . . . . 1 . . . . 1 . . . . 1 . . . . 1 . 1 1 1 . Network Hub 4 | . . . . . . . . . . . . . . 4 . . . . . . . . . . . . . . . . Energy Cycler 1 | . . . . . . . . . . . 1 . . . . . . . . . . . . . . . . . . . Machines Repaired . | . . . . . . . . . . . . . . . . . . . . . . . . . . . . . . . Machines Dismantled . | . . . . . . . . . . . . . . . . . . . . . . . . . . . . . . . Machines Sabotaged . | . . . . . . . . . . . . . . . . . . . . . . . . . . . . . . . Overloaded Fab Kills . | . . . . . . . . . . . . . . . . . . . . . . . . . . . . . . . Hacking | -11 -10 -10 -8 -8 -7 -7 -7 -7 -6 -6 -6 -6 -6 -6 -5 -5 -5 -5 -4 -4 -4 -4 -4 -3 -3 -3 -2 -2 -1 -1 --------- Run | Yrd Mat Sub Mat Sto Fac Low Low Zio Pro Fac Ext Cet Arc Hub Fac Upp Upp Zhi Pro Fac Upp Upp War Pro Res Arm Res Tes Acc Com Machines Accessed 96 | . 9 1 16 18 7 1 2 . . 8 9 . . . 1 3 1 4 . 2 . 1 1 . 1 1 4 3 3 . Terminals 42 | . 7 . 10 13 3 . . . . . 8 . . . . . . . . . . . . . . 1 . . . . Fabricators 4 | . . . . . 2 . . . . 1 . . . . . . . . . 1 . . . . . . . . . . Repair Stations 6 | . 1 . 2 2 . . . . . 1 . . . . . . . . . . . . . . . . . . . . Recycling Units 9 | . 1 . 1 2 1 . . . . 3 1 . . . . . . . . . . . . . . . . . . . Scanalyzers 10 | . . . 2 . 1 . . . . 2 . . . . . . . . . . . . . . . . 2 2 1 . Garrison Access 11 | . . . 1 1 . . . . . 1 . . . . 1 . . . . 1 . . . . 1 . 2 1 2 . Total Hacks 224 | . 28 1 43 42 14 1 8 . . 14 13 . . . 2 5 1 17 . 2 . 1 1 . 4 1 12 11 3 . Successful 144 | . 16 1 24 31 9 1 8 . . 8 6 . . . 1 5 1 17 . 2 . 1 1 . 1 . 3 6 2 . Failed 80 | . 12 . 19 11 5 . . . . 6 7 . . . 1 . . . . . . . . . 3 1 9 5 1 . Catastrophic 15 | . 1 . . 1 . . . . . 4 1 . . . . . . . . . . . . . 2 1 2 2 1 . Database Lockouts . | . . . . . . . . . . . . . . . . . . . . . . . . . . . . . . . Manual 210 | . 17 . 18 20 7 . . . . 20 19 1 . 30 3 . . . . 5 . . . . . 8 8 22 15 17 Terminals 97 | . 21 . 27 31 6 . . . . . 11 . . . . . . . . . . . . . . 1 . . . . Fabricators 8 | . . . . . 5 . . . . 2 . . . . . . . . . 1 . . . . . . . . . . Repair Stations 12 | . 2 . 3 6 . . . . . 1 . . . . . . . . . . . . . . . . . . . . Recycling Units 17 | . 5 . 2 3 2 . . . . 3 2 . . . . . . . . . . . . . . . . . . . Scanalyzers 32 | . . . 8 . 1 . . . . 7 . . . . . . . . . . . . . . . . 8 7 1 . Garrison Access 23 | . . . 3 2 . . . . . 1 . . . . 2 . . . . 1 . . . . 4 . 4 4 2 . Terminal Hacks 65 | . 7 1 4 14 . 1 8 . . . 5 . . . . 5 1 17 . . . 1 1 . . . . . . . Record 16 | . . . . . . . 7 . . . . . . . . 4 . 5 . . . . . . . . . . . . Part Schematic 6 | . 1 . . 1 . . . . . . . . . . . . . 4 . . . . . . . . . . . . Robot Analysis 4 | . . . . . . . . . . . . . . . . . . 4 . . . . . . . . . . . . Prototype ID Bank 9 | . 2 . 1 2 . . . . . . . . . . . . . 4 . . . . . . . . . . . . Open Door 17 | . . . . 6 . 1 1 . . . 5 . . . . 1 1 . . . . 1 1 . . . . . . . Branch Access Points 1 | . . . 1 . . . . . . . . . . . . . . . . . . . . . . . . . . . Terminal Index 2 | . 1 . . 1 . . . . . . . . . . . . . . . . . . . . . . . . . . Scanalyzer Index 1 | . . . . 1 . . . . . . . . . . . . . . . . . . . . . . . . . . Alert Level 1 | . . . . 1 . . . . . . . . . . . . . . . . . . . . . . . . . . Locate Traps 1 | . 1 . . . . . . . . . . . . . . . . . . . . . . . . . . . . . Hauler Manifests 1 | . . . 1 . . . . . . . . . . . . . . . . . . . . . . . . . . . Registered Components 3 | . 1 . 1 1 . . . . . . . . . . . . . . . . . . . . . . . . . . Registered Prototypes 1 | . 1 . . . . . . . . . . . . . . . . . . . . . . . . . . . . . Zone Layout 1 | . . . . 1 . . . . . . . . . . . . . . . . . . . . . . . . . . Proto ID Catalog 1 | . . 1 . . . . . . . . . . . . . . . . . . . . . . . . . . . . Fabricator Hacks 3 | . . . . . 3 . . . . . . . . . . . . . . . . . . . . . . . . . Load Schematic 2 | . . . . . 2 . . . . . . . . . . . . . . . . . . . . . . . . . Build 1 | . . . . . 1 . . . . . . . . . . . . . . . . . . . . . . . . . Repair Station Hacks 10 | . 2 . 2 6 . . . . . . . . . . . . . . . . . . . . . . . . . . Scan Component 5 | . 1 . 1 3 . . . . . . . . . . . . . . . . . . . . . . . . . . Repair 5 | . 1 . 1 3 . . . . . . . . . . . . . . . . . . . . . . . . . . Recycling Unit Hacks 8 | . 1 . 1 2 2 . . . . 1 1 . . . . . . . . . . . . . . . . . . . Retrieve Components 8 | . 1 . 1 2 2 . . . . 1 1 . . . . . . . . . . . . . . . . . . . Scanalyzer 22 | . . . 8 . . . . . . 6 . . . . . . . . . . . . . . . . 2 5 1 . Insert Component 7 | . . . 1 . . . . . . 1 . . . . . . . . . . . . . . . . 1 3 1 . Analyze 2 | . . . 1 . . . . . . 1 . . . . . . . . . . . . . . . . . . . . Retrieve Study 13 | . . . 6 . . . . . . 4 . . . . . . . . . . . . . . . . 1 2 . . Garrison Access Hacks 8 | . . . . 1 . . . . . 1 . . . . 1 . . . . 1 . . . . 1 . 1 1 1 . Seal Access 8 | . . . . 1 . . . . . 1 . . . . 1 . . . . 1 . . . . 1 . 1 1 1 . Unauthorized Hacks 28 | . 6 . 9 8 4 . . . . . . . . . . . . . . 1 . . . . . . . . . . Terminals 25 | . 5 . 9 8 3 . . . . . . . . . . . . . . . . . . . . . . . . . Assimilate 4 | . 1 . 1 . 2 . . . . . . . . . . . . . . . . . . . . . . . . . Botnet 8 | . 3 . 1 3 1 . . . . . . . . . . . . . . . . . . . . . . . . . Operators 3 | . 1 . 1 1 . . . . . . . . . . . . . . . . . . . . . . . . . . Skim 10 | . . . 6 4 . . . . . . . . . . . . . . . . . . . . . . . . . . Fabricators 2 | . . . . . 1 . . . . . . . . . . . . . . 1 . . . . . . . . . . Liberate 1 | . . . . . . . . . . . . . . . . . . . . 1 . . . . . . . . . . Recompile 1 | . . . . . 1 . . . . . . . . . . . . . . . . . . . . . . . . . Repair Stations . | . . . . . . . . . . . . . . . . . . . . . . . . . . . . . . . Recycling Units 1 | . 1 . . . . . . . . . . . . . . . . . . . . . . . . . . . . . Tunnel 1 | . 1 . . . . . . . . . . . . . . . . . . . . . . . . . . . . . Scanalyzers . | . . . . . . . . . . . . . . . . . . . . . . . . . . . . . . . Garrison Access . | . . . . . . . . . . . . . . . . . . . . . . . . . . . . . . . Data Cores Recovered 1 | . . . 1 . . . . . . . . . . . . . . . . . . . . . . . . . . . Used 1 | . . . 1 . . . . . . . . . . . . . . . . . . . . . . . . . . . Hacking Detections 52 | . 9 . 14 10 5 . . . . 5 4 . . . . . . . . 1 . . . . . 1 2 . 1 . Full Trace Events 2 | . . . . . . . . . . 2 . . . . . . . . . . . . . . . . . . . . Feedback Events . | . . . . . . . . . . . . . . . . . . . . . . . . . . . . . . . Feedback Blocked . | . . . . . . . . . . . . . . . . . . . . . . . . . . . . . . . Robot Schematics Acquired 14 | . . . . . . . . 4 . . . . . 7 . . . . . . . . . . . . . 3 . . Robots Built . | . . . . . . . . . . . . . . . . . . . . . . . . . . . . . . . Authchips . | . . . . . . . . . . . . . . . . . . . . . . . . . . . . . . . Time . | . . . . . . . . . . . . . . . . . . . . . . . . . . . . . . . Total Robot Build Rating . | . . . . . . . . . . . . . . . . . . . . . . . . . . . . . . . Part Schematics Acquired 94 | . 1 . 1 1 . . . 15 . 1 17 . . 30 . . . 4 . . . . . . . 14 . 10 . . Parts Built 1 | . . . . . 1 . . . . . . . . . . . . . . . . . . . . . . . . . Authchips 1 | . . . . . 1 . . . . . . . . . . . . . . . . . . . . . . . . . Time 25 | . . . . . 25 . . . . . . . . . . . . . . . . . . . . . . . . . Total Part Build Rating 1 | . . . . . 1 . . . . . . . . . . . . . . . . . . . . . . . . . Part Studies Acquired 13 | . . . 6 . . . . . . 4 . . . . . . . . . . . . . . . . 1 2 . . Parts Repaired 5 | . 1 . 1 3 . . . . . . . . . . . . . . . . . . . . . . . . . . Time 175 | . 26 . 32 117 . . . . . . . . . . . . . . . . . . . . . . . . . . Parts Recycled . | . . . . . . . . . . . . . . . . . . . . . . . . . . . . . . . Recycled Matter . | . . . . . . . . . . . . . . . . . . . . . . . . . . . . . . . Retrieved Matter . | . . . . . . . . . . . . . . . . . . . . . . . . . . . . . . . Retrieved Components 27 | . 9 . 10 4 . . . . . 2 2 . . . . . . . . . . . . . . . . . . . Parts Scanalyzed 2 | . . . 1 . . . . . . 1 . . . . . . . . . . . . . . . . . . . . Part Schematics Acquired 2 | . . . 1 . . . . . . 1 . . . . . . . . . . . . . . . . . . . . Parts Damaged . | . . . . . . . . . . . . . . . . . . . . . . . . . . . . . . . Bothacking | -11 -10 -10 -8 -8 -7 -7 -7 -7 -6 -6 -6 -6 -6 -6 -5 -5 -5 -5 -4 -4 -4 -4 -4 -3 -3 -3 -2 -2 -1 -1 ------------ Run | Yrd Mat Sub Mat Sto Fac Low Low Zio Pro Fac Ext Cet Arc Hub Fac Upp Upp Zhi Pro Fac Upp Upp War Pro Res Arm Res Tes Acc Com Used RIF Installer . | . . . . . . . . . . . . . . . . . . . . . . . . . . . . . . . Robots Hacked 12 | . . . . . . . . . . . . . . . . 2 . 3 . 1 . . . . . . 3 2 . 1 Non-combat 1 | . . . . . . . . . . . . . . . . . . . . 1 . . . . . . . . . . Combat 11 | . . . . . . . . . . . . . . . . 2 . 3 . . . . . . . . 3 2 . 1 Robot Hacks Applied 14 | . . . . . . . . . . . . . . . . 2 . 3 . 1 . . . . . . 3 3 . 2 parse_system 13 | . . . . . . . . . . . . . . . . 2 . 3 . . . . . . . . 3 3 . 2 find_chute 1 | . . . . . . . . . . . . . . . . . . . . 1 . . . . . . . . . . Relay Couplers Released 5 | . . . . . . . . . . . . . . . 2 . . . . . . . . . . 3 . . . . Machine Destruction 2 | . . . . . . . . . . . . . . . 2 . . . . . . . . . . . . . . . Programmers 3 | . . . . . . . . . . . . . . . . . . . . . . . . . . 3 . . . . Fabnet Peak Effective % . | . . . . . . . . . . . . . . . . . . . . . . . . . . . . . . . Robots Rewired 21 | . . . . . . 3 . . 2 . 10 . . . . . . . . 3 . 2 . . . 1 . . . . Allies Hacked 6 | . . . . . . . . . 1 . . . . . 2 . . . . 1 . . . . . 1 . . . 1 Hacks Repelled 1 | . . . . . . . . . . . . . . . . . . . . . . . . . . 1 . . . . Allies | -11 -10 -10 -8 -8 -7 -7 -7 -7 -6 -6 -6 -6 -6 -6 -5 -5 -5 -5 -4 -4 -4 -4 -4 -3 -3 -3 -2 -2 -1 -1 -------- Run | Yrd Mat Sub Mat Sto Fac Low Low Zio Pro Fac Ext Cet Arc Hub Fac Upp Upp Zhi Pro Fac Upp Upp War Pro Res Arm Res Tes Acc Com Total Allies 57 | . . . 1 2 1 3 . 4 2 2 19 5 . 3 . . . . . 5 . 2 . . . 4 3 . 1 . Largest Group 16 | . . . 1 2 1 3 2 6 6 2 14 16 15 6 . . . . . 3 . 2 . . . 3 3 2 1 . Highest-Rated Group 932 | . . . 26 62 26 48 32 184 184 170 554 932 904 386 . . . . . 162 . 99 . . . 288 276 244 269 . Highest-Rated Ally 269 | . . . 26 31 26 16 16 40 40 85 159 159 159 96 . . . . . 64 . 50 . . . 96 122 122 269 . Zionite Dispatches 7 | . . . . . . . . . . 1 1 . . 1 . . . . . . . . . . . 1 2 . 1 . Heavy 2 | . . . . . . . . . . 1 . . . . . . . . . . . . . . . . 1 . . . Light 2 | . . . . . . . . . . . . . . 1 . . . . . . . . . . . 1 . . . . Experimental 1 | . . . . . . . . . . . . . . . . . . . . . . . . . . . . . 1 . Explosive Resupply 1 | . . . . . . . . . . . 1 . . . . . . . . . . . . . . . . . . . Resource Resupply 1 | . . . . . . . . . . . . . . . . . . . . . . . . . . . 1 . . . Total Orders 75 | . . . 2 4 2 . 2 . . 5 3 4 8 14 1 . . 1 5 4 . 2 9 1 2 4 1 . . 1 STAY 40 | . . . 1 2 1 . 1 . . 3 1 3 5 9 1 . . 1 2 3 . . 3 . 1 2 . . . 1 ROAM 5 | . . . . . . . . . . . . . 2 . . . . . . . . 2 . 1 . . . . . . FOLLOW 25 | . . . 1 2 1 . 1 . . 2 1 1 1 5 . . . . 3 1 . . 3 . 1 2 . . . . AID 3 | . . . . . . . . . . . . . . . . . . . . . . . 3 . . . . . . . DROP 2 | . . . . . . . . . . . 1 . . . . . . . . . . . . . . . 1 . . . Ally Attacks 1709 | . . . . 13 . . 19 . 42 70 139 68 43 264 94 19 42 . 15 102 69 94 63 33 51 71 76 60 144 118 Total Damage 69971 | . . . . 207 . . 194 . 876 3376 3100 1709 973 8532 4290 664 1799 . 413 3683 2342 4234 3462 1229 1613 2587 2943 4477 9132 8136 Kills 388 | . . . . 1 . . 2 . 5 23 17 8 4 50 25 6 10 . 4 28 10 25 20 7 7 16 18 23 43 36 Allies Corrupted 13 | . . . . . . . . . 1 . . . . 6 . . . . . . . . . . . 2 . 1 1 2 Allies Melted 1 | . . . . . . . . . . . . . . . . . 1 . . . . . . . . . . . . . Borg Created 59 | . . . . . . . . . . 6 1 2 2 5 1 . . . . 2 . . 3 1 3 3 . 7 12 11 Largest Collective 5 | . . . . . . . . . . 3 3 3 4 5 5 . . . . 5 . . 5 4 4 3 . 3 2 3 Intel | -11 -10 -10 -8 -8 -7 -7 -7 -7 -6 -6 -6 -6 -6 -6 -5 -5 -5 -5 -4 -4 -4 -4 -4 -3 -3 -3 -2 -2 -1 -1 ------- Run | Yrd Mat Sub Mat Sto Fac Low Low Zio Pro Fac Ext Cet Arc Hub Fac Upp Upp Zhi Pro Fac Upp Upp War Pro Res Arm Res Tes Acc Com Active Infowar (turns) 34905 | 24 1839 869 3148 890 1009 1393 1414 1621 779 1784 1104 156 726 730 555 1939 1552 247 1091 967 1491 1476 944 964 575 559 569 1755 2426 309 Sensors 23756 | . . . . . 573 1393 1414 1621 735 1784 1104 156 726 730 553 48 . 126 1091 910 1491 1476 943 964 575 557 569 1743 2307 167 A.S.S. 3564 | . . . . . . . . . . . . . . . . 1891 1552 121 . . . . . . . . . . . . Terrain 6586 | . . . . . . . . . . . . . . 492 353 48 . . . 950 1485 1475 771 688 324 . . . . . Seismic 7206 | 24 1839 869 3148 890 436 . . . . . . . . . . . . . . . . . . . . . . . . . Cloaking 5765 | . . . . . . . . . . . . . . . . . . . . . . . 1 . 214 559 569 1742 2426 254 Jamming 44 | . . . . . . . . . 44 . . . . . . . . . . . . . . . . . . . . . Robot Analysis Total 4 | . . . . . . . . . . . . . . . . . . 4 . . . . . . . . . . . . Derelict Logs Recovered 19 | . . 2 . . . 2 2 3 3 . . . . . . 2 1 . 2 . . 2 . . . . . . . . Drone Launches . | . . . . . . . . . . . . . . . . . . . . . . . . . . . . . . . Drone Recoveries . | . . . . . . . . . . . . . . . . . . . . . . . . . . . . . . . Zionite Intel Received 32 | . . . . . . . . . . 4 4 . . 8 . . . . . . . . . . . 1 1 6 3 5 Main Access 1 | . . . . . . . . . . . . . . . . . . . . . . . . . . . . 1 . . Branch Access 3 | . . . . . . . . . . 1 . . . . . . . . . . . . . . . . 1 1 . . Emergency Access 2 | . . . . . . . . . . . . . . 1 . . . . . . . . . . . . . . 1 . Guard Positions 2 | . . . . . . . . . . . . . . 1 . . . . . . . . . . . . . . . 1 Prototype Stockpiles 1 | . . . . . . . . . . 1 . . . . . . . . . . . . . . . . . . . . Component Schematics 3 | . . . . . . . . . . . . . . 2 . . . . . . . . . . . 1 . . . . Prototype Schematics 3 | . . . . . . . . . . . 2 . . . . . . . . . . . . . . . . 1 . . Unaware Schematics 3 | . . . . . . . . . . . . . . 2 . . . . . . . . . . . . . 1 . . Unaware Analyses 3 | . . . . . . . . . . . 1 . . . . . . . . . . . . . . . . . . 2 Trap Installations 3 | . . . . . . . . . . . 1 . . 1 . . . . . . . . . . . . . . . 1 Active Terminals 2 | . . . . . . . . . . . . . . . . . . . . . . . . . . . . 1 . 1 Active Garrisons 2 | . . . . . . . . . . 1 . . . . . . . . . . . . . . . . . . 1 . Depthwide Sectors/0 2 | . . . . . . . . . . . . . . . . . . . . . . . . . . . . 1 1 . Depthwide Sectors/-1 2 | . . . . . . . . . . 1 . . . 1 . . . . . . . . . . . . . . . . Exploration | -11 -10 -10 -8 -8 -7 -7 -7 -7 -6 -6 -6 -6 -6 -6 -5 -5 -5 -5 -4 -4 -4 -4 -4 -3 -3 -3 -2 -2 -1 -1 ------------- Run | Yrd Mat Sub Mat Sto Fac Low Low Zio Pro Fac Ext Cet Arc Hub Fac Upp Upp Zhi Pro Fac Upp Upp War Pro Res Arm Res Tes Acc Com Turns Passed 43072 | 112 1839 4361 3149 1668 1221 1489 1593 1728 1365 2299 1258 405 726 1207 559 1940 1552 248 1091 991 1491 1476 1213 964 575 559 569 1755 2426 1243 Spaces Moved 25226 | 53 658 1933 1493 964 758 1069 1239 996 1024 1235 693 210 451 749 385 1332 1086 172 790 608 1067 1016 807 647 332 332 323 1032 1142 630 Core 19 | 8 . 1 . . . . . . . . . . . . . . . . . . . . . . . . . . . 10 Treads 7757 | 45 658 1932 1493 520 . . . . . . . . . . . . . . . . . . . . . 2 323 1032 1142 610 Legs 5725 | . . . . 444 758 1069 1239 996 1024 195 . . . . . . . . . . . . . . . . . . . . Wheels 11715 | . . . . . . . . . . 1040 693 210 451 749 385 1332 1086 172 790 608 1067 1016 807 647 332 330 . . . . Hover 10 | . . . . . . . . . . . . . . . . . . . . . . . . . . . . . . 10 Flight . | . . . . . . . . . . . . . . . . . . . . . . . . . . . . . . . Fastest Speed 50 | 50 160 160 160 90 105 110 115 115 115 110 130 130 130 130 120 135 135 120 135 116 130 130 130 130 130 130 145 145 145 50 Average Speed 136 | 143 160 185 162 130 114 114 115 115 115 138 130 130 130 130 123 135 135 132 135 124 130 130 130 130 130 130 145 145 150 148 Slowest Speed 400 | 160 240 400 240 163 186 115 115 115 115 190 130 130 130 130 135 135 135 135 135 145 130 130 130 130 150 225 225 185 206 250 Overloaded Moves . | . . . . . . . . . . . . . . . . . . . . . . . . . . . . . . . Propulsion Burnouts . | . . . . . . . . . . . . . . . . . . . . . . . . . . . . . . . Robots Hopped . | . . . . . . . . . . . . . . . . . . . . . . . . . . . . . . . Potential Cave-ins 15 | . . . . . . . . . . . . . . . . 1 . . . . . . . . . . . 5 . 9 Cave-ins Triggered . | . . . . . . . . . . . . . . . . . . . . . . . . . . . . . . . Teleports 1 | . . . . . . . . . . . . . . . . . . . . . . . . . 1 . . . . . Exploration Rate (%) 66 | 4 98 66 90 93 24 92 96 88 98 35 85 70 94 83 17 93 99 60 89 19 99 98 75 89 12 28 15 83 45 34 Regions Visited 30 Branch Regions 21 Pre-discovered Areas 26 | . 1 . 3 . . 1 1 3 . 4 . . . 4 . . . 3 2 . . . . . . . . 2 2 . Known Exits Taken 27 | . . 1 1 . 1 1 1 1 1 1 1 1 1 1 1 1 1 1 1 1 1 1 1 1 1 1 1 1 1 . Unknown Exits Taken 3 | 1 1 . . 1 . . . . . . . . . . . . . . . . . . . . . . . . . . Scrap Searched 42 | . . 5 . . . 2 5 2 5 . . . . . . 5 2 . 5 . 4 4 . 3 . . . . . . Spaces Dug 284 | . 33 . 7 7 17 33 13 . . 25 30 . . 6 3 . . . 1 5 1 2 . . 6 6 13 23 36 17 Terrain Destroyed 1157 | . 173 6 98 14 32 79 58 . . 25 78 . . 195 6 . . . 1 5 2 30 1 . 9 6 15 42 73 209 Melee 112 | . . . 6 5 17 28 2 . . 23 2 . . 6 3 . . . 1 5 1 2 . . 4 6 1 . . . Projectile 183 | . 7 6 8 9 . 7 1 . . 2 20 . . . 3 . . . . . 1 . 1 . 5 . 14 42 27 30 AOE 861 | . 166 . 84 . 15 44 55 . . . 56 . . 189 . . . . . . . 28 . . . . . . 45 179 Terrain Rammed . | . . . . . . . . . . . . . . . . . . . . . . . . . . . . . . . Walls Destroyed . | . . . . . . . . . . . . . . . . . . . . . . . . . . . . . . . Machines Disabled . | . . . . . . . . . . . . . . . . . . . . . . . . . . . . . . . Actions | -11 -10 -10 -8 -8 -7 -7 -7 -7 -6 -6 -6 -6 -6 -6 -5 -5 -5 -5 -4 -4 -4 -4 -4 -3 -3 -3 -2 -2 -1 -1 --------- Run | Yrd Mat Sub Mat Sto Fac Low Low Zio Pro Fac Ext Cet Arc Hub Fac Upp Upp Zhi Pro Fac Upp Upp War Pro Res Arm Res Tes Acc Com Total 32182 | 73 1372 2628 1970 1263 1020 1272 1376 1577 1135 1735 972 329 551 942 448 1461 1172 190 812 816 1161 1156 942 762 445 429 385 1202 1752 834 Wait 4646 | 2 615 513 223 168 94 119 93 561 45 357 139 96 71 136 23 105 87 2 21 147 83 103 60 105 70 5 6 57 469 71 Move 25196 | 52 657 1932 1492 963 757 1068 1238 995 1023 1234 692 209 450 748 384 1331 1085 171 789 607 1066 1015 806 646 331 331 322 1031 1141 630 Hop . | . . . . . . . . . . . . . . . . . . . . . . . . . . . . . . . Pick Up 249 | 5 21 44 31 9 20 . 4 2 3 20 3 2 2 4 11 4 . 3 . 6 . 1 11 1 8 6 4 5 13 6 Fast Attach 92 | 7 4 5 10 11 6 . . 4 1 4 . . . 2 . . . 3 . 5 . . 4 . . 1 2 5 4 14 Attach 89 | . 1 6 8 2 4 . 3 1 5 3 . . . . 2 1 . 2 . 2 . . 3 . 8 4 4 . 13 17 Detach 24 | . . 1 . . . . . 1 3 . . . . . . . . 1 . . . . 2 . . . 4 . 3 9 Swap 355 | . 20 9 38 25 27 8 8 2 10 28 18 10 1 18 10 4 . 2 1 14 6 8 18 4 8 15 5 19 14 5 Drop 294 | . 14 43 39 16 21 . 5 9 7 26 5 4 2 11 6 4 . 3 . 10 . 1 15 1 2 16 . 12 18 4 Fire 768 | 7 39 51 111 59 68 26 22 1 27 11 74 5 . 2 3 5 . 3 . 11 5 7 17 4 6 2 30 52 60 60 Melee 214 | . . . 14 5 23 30 2 1 . 46 4 . 20 14 8 7 . . 1 10 1 3 . . 7 9 6 3 . . Ram 2 | . . . . . . . . . . . . . . . . . . . . . . . . . 1 . . . . 1 Kick 3 | . . . . 2 . . 1 . . . . . . . . . . . . . . . . . . . . . . . Crush 34 | . 1 19 4 3 . . . . . . . . . . . . . . . . . . . . . . 2 2 2 1 Escape Stasis 9 | . . . . . . . . . . . 9 . . . . . . . . . . . . . . . . . . . Rewire 111 | . . . . . . 21 . . 11 . 27 . . . . . . . . 1 . 18 . . . 33 . . . . Trap 1 | . . 1 . . . . . . . . . . . . . . . . . . . . . . . . . . . . Miscellaneous 95 | . . 4 . . . . . . . 6 1 3 5 7 1 . . . . 3 . . 6 1 4 7 . 16 15 16 Route ------- -11/Scrapyard -10/Materials (discovered 6 exits: [*Mat x3] / [*Min x2] / *Sub) -10/Subcaves -8/Materials (discovered 3 exits: *Fac x2 / *Sto) -8/Storage (discovered 2 exits: *Fac / Rec) -7/Factory (discovered 2 exits: *Low x2) -7/Lower Caves -7/Lower Caves (discovered 2 exits: *Fac / *Zio) -7/Zion -6/Proximity Caves -6/Factory (discovered 7 exits: *Fac x3 / *Low x2 / *Ext x2) -6/Extension (discovered 2 exits: *Fac / *Cet) -6/Cetus (discovered 2 exits: *Fac / *Arc) -6/Archives (discovered 3 exits: *Fac / *Hub x2) -6/Hub_04(d) (discovered 3 exits: *Fac x3) -5/Factory -5/Upper Caves -5/Upper Caves (discovered 2 exits: *Fac / *Zhi) -5/Zhirov -4/Proximity Caves -4/Factory -4/Upper Caves (discovered 2 exits: *Upp / *War) -4/Upper Caves (discovered 2 exits: *Res / *War) -4/Warlord -3/Proximity Caves -3/Research (discovered 2 exits: *Arm / Qua) -3/Armory -2/Research (discovered 2 exits: *Tes x2) -2/Testing -1/Access -1/Command History --------- Turn | Location | Event 7 | -11/Scrapyard | Discovered new exit (range 14) 113 | -11/Scrapyard | Entered Materials 311 | -10/Materials | Build established: Mutant 320 | -10/Materials | Discovered new exit (range 13) 514 | -10/Materials | Discovered new exit (range 15) 610 | -10/Materials | Discovered new exit (range 13) 797 | -10/Materials | Discovered new exit (range 16) 1028 | -10/Materials | Discovered new exit (range 15) 1253 | -10/Materials | Repaired Lgt. Treads 1322 | -10/Materials | Discovered new exit (range 9) 1952 | -10/Materials | Entered Subcaves 1953 | -10/Subcaves | Approached by a straggling Scientist 2089 | -10/Subcaves | Shifting Twisted Machinery released Mak. Flight Unit 2239 | -10/Subcaves | Shifting Twisted Machinery released Battle Cannon 2525 | -10/Subcaves | Shifting Twisted Machinery released Spk. Treads 2544 | -10/Subcaves | Shifting Twisted Machinery released Sub. Machine Gun 2784 | -10/Subcaves | Lost 6 parts (1p2n1u2w) 2823 | -10/Subcaves | Identified exit to Materials 3352 | -10/Subcaves | Build established: Subdweller-Mutant 3964 | -10/Subcaves | Visited 4L-MR0's lab 4076 | -10/Subcaves | Core integrity fell below 50% 5120 | -10/Subcaves | Build established: Mutant 6027 | -10/Subcaves | Found Arachnoskeleton 6035 | -10/Subcaves | Found Prototype Special Melee Weapon 6313 | -10/Subcaves | Entered Materials 6313 | -8/Materials | Evolved 4 slots: Power x1, Propulsion x1, Utility x1, Weapon x1 6314 | -8/Materials | Identified exit to Storage 6806 | -8/Materials | Build established: Gunner 7230 | -8/Materials | Discovered new exit (range 16) 7853 | -8/Materials | Build established: Scavenger-Gunner 8232 | -8/Materials | Discovered new exit (range 14) 8433 | -8/Materials | Learned location of Extension (-6) 8460 | -8/Materials | Build established: Gunner 8470 | -8/Materials | Learned Factory stockpile data 8496 | -8/Materials | Learned 2 Lower Caves zone layouts 8510 | -8/Materials | Learned Storage emergency access door positions 8516 | -8/Materials | Learned Factory emergency access door positions 8523 | -8/Materials | Learned location of 1 exit from Storage 8539 | -8/Materials | Learned location of Zion (-7) 8783 | -8/Materials | Repaired Spk. Treads 9462 | -8/Materials | Entered Storage 9462 | -8/Storage | Accompanied by 1 ally 9463 | -8/Storage | Identified exit to Recycling 9842 | -8/Storage | Garrison activated, responded to threat 9934 | -8/Storage | Discovered new exit (range 15) 10089 | -8/Storage | Repaired Broken Ion Cannon+ 10616 | -8/Storage | Attached Arachnoskeleton, gained temporary slots: Propulsion x3 10732 | -8/Storage | Repaired Imp. Propulsion Shielding 10783 | -8/Storage | Repaired Seismic Detector 11026 | -8/Storage | Met a pair of Derelict thieves 11130 | -8/Storage | Entered Factory 11130 | -7/Factory | Evolved 2 slots: Utility x1, Weapon x1 11131 | -7/Factory | Identified exit to Lower Caves 11186 | -7/Factory | Fabricated Hcp. Storage Unit (x1) 11469 | -7/Factory | Build established: Tank 12213 | -7/Factory | Build established: Skirmisher 12351 | -7/Factory | Entered Lower Caves 12440 | -7/Lower Caves | Encountered a Warlord checkpoint 13053 | -7/Lower Caves | Learned 12 Factory zone layouts 13698 | -7/Lower Caves | Attacked by a delusional Derelict stockpiling Unaware 13817 | -7/Lower Caves | Discovered new exit (range 4) 13834 | -7/Lower Caves | Identified exit to Lower Caves 13840 | -7/Lower Caves | Entered another Lower Caves area 13840 | -7/Lower Caves | Accompanied by 3 allies 13933 | -7/Lower Caves | Identified exit to Zion 13964 | -7/Lower Caves | Discovered new exit (range 11) 14587 | -7/Lower Caves | Learned location of 1 exit from Factory 14955 | -7/Lower Caves | Entered an active Warlord outpost 14978 | -7/Lower Caves | Learned 8 Factory zone layouts 14978 | -7/Lower Caves | Learned Factory trap positions 14978 | -7/Lower Caves | Learned Extension garrison access intel 14978 | -7/Lower Caves | Learned Armory garrison access intel 15433 | -7/Lower Caves | Entered Zion 15433 | -7/Zion | Accompanied by 2 allies 15491 | -7/Zion | Discovered new exit (range 12) 15714 | -7/Zion | Found Prototype Energy Gun 15714 | -7/Zion | Identified Storm Laser 15827 | -7/Zion | Found Prototype Special Weapon 15827 | -7/Zion | Identified RU-N14's Throwing Claymores 15832 | -7/Zion | Learned location of Armory (-3) 15835 | -7/Zion | Found RU-N14's Throwing Claymores 15959 | -7/Zion | Learned 12 Factory zone layouts 16406 | -7/Zion | Met Imprinter 16426 | -7/Zion | Imprinted 16429 | -7/Zion | Declared Zion's savior 17121 | -7/Zion | Identified exit to Proximity Caves 17161 | -7/Zion | Entered Proximity Caves 17161 | -6/Proximity Caves | Accompanied by 6 allies 17163 | -6/Proximity Caves | Attracted the attention of an 0b10 checkpoint 17475 | -6/Proximity Caves | Learned 8 Factory zone layouts 17623 | -6/Proximity Caves | Spotted B-75 Beast 17642 | -6/Proximity Caves | Destroyed B-75 Beast 17735 | -6/Proximity Caves | Identified exit to Factory 17973 | -6/Proximity Caves | Learned Factory non-interactive machine intel 18155 | -6/Proximity Caves | Attracted the attention of an 0b10 outpost 18526 | -6/Proximity Caves | Entered Factory 18526 | -6/Factory | Evolved 2 slots: Weapon x2 18526 | -6/Factory | Identified 1B-0RG's Assimilator 18527 | -6/Factory | Identified exit to Lower Caves 18528 | -6/Factory | Identified exit to Factory 18529 | -6/Factory | Loaded intel: 101 trap records 18530 | -6/Factory | Loaded intel: 231 non-interactive machine locations 18696 | -6/Factory | Assimilating Slayer 5a into Collective. 18707 | -6/Factory | Assimilating Slayer 5b into Collective. 18710 | -6/Factory | Assimilating Soldier 5b into Collective. 18798 | -6/Factory | Retrieved Zion intel report: Branch Access 18798 | -6/Factory | Identified exit to Extension 18815 | -6/Factory | Build established: Mutant 18902 | -6/Factory | Retrieved Zion intel report: Depthwide Sectors/-5 19048 | -6/Factory | Retrieved Zion intel report: Active Garrisons 19188 | -6/Factory | Assimilating Hacker 5a into Collective. 19435 | -6/Factory | Retrieved Zion intel report: Prototype Stockpiles 19436 | -6/Factory | Zion Heavy squad teleported in 19575 | -6/Factory | Spotted B-75 Beast 19585 | -6/Factory | Allies destroyed B-75 Beast 19864 | -6/Factory | Found Prototype Device 20057 | -6/Factory | Watched by a mysterious "MATRIX" hacker. 20088 | -6/Factory | Terminal network hard line cut 20216 | -6/Factory | Assimilating Hacker 5b into Collective. 20485 | -6/Factory | Assimilating Hacker 5c into Collective. 20825 | -6/Factory | Entered Extension 20825 | -6/Extension | Accompanied by 4 allies 20930 | -6/Extension | Rescued a captive Derelict 21117 | -6/Extension | Rescued a captive Derelict 21117 | -6/Extension | Rescued a captive Derelict 21133 | -6/Extension | Rescued a captive Derelict 21151 | -6/Extension | Rescued a captive Derelict 21153 | -6/Extension | Rescued a captive Derelict 21278 | -6/Extension | Assimilating L5-8Z4(h) into Collective. 21560 | -6/Extension | Spotted B-75 Beast 21581 | -6/Extension | Allies destroyed B-75 Beast 21590 | -6/Extension | Spotted B-75 Beast 21600 | -6/Extension | Allies destroyed B-75 Beast 21636 | -6/Extension | Lost 5 allies 21708 | -6/Extension | Rescued A7 21806 | -6/Extension | Retrieved Zion intel report: Trap Installations 21808 | -6/Extension | Retrieved Zion intel report: Prototype Schematics 21813 | -6/Extension | Retrieved Zion intel report: Unaware Analyses 21815 | -6/Extension | Energy Cycler disabled 21815 | -6/Extension | Rescued a captive Derelict 21815 | -6/Extension | Rescued a captive Derelict 21815 | -6/Extension | Rescued a captive Derelict 21816 | -6/Extension | Rescued a captive Derelict 21816 | -6/Extension | Rescued a captive Derelict 21818 | -6/Extension | Rescued a captive Derelict 21819 | -6/Extension | Rescued a captive Derelict 21821 | -6/Extension | Retrieved Zion intel report: Prototype Schematics 21822 | -6/Extension | Zion Explosive Resupply teleported in 21826 | -6/Extension | Found Prototype Launcher 21826 | -6/Extension | Identified Scatter Rocket Array 21875 | -6/Extension | Disrupted transfer network 22025 | -6/Extension | Discovered exit to Factory (range 10) 22026 | -6/Extension | Discovered new exit (range 6) 22064 | -6/Extension | Build established: Commander-Mutant 22066 | -6/Extension | Identified exit to Cetus 22083 | -6/Extension | Entered Cetus 22083 | -6/Cetus | Accompanied by 14 allies (A7) 22088 | -6/Cetus | Acquired a Cetus Manufacturing Module code from A7 22117 | -6/Cetus | Spotted Cetus Guard 22119 | -6/Cetus | Spotted Cetus Guard 22119 | -6/Cetus | Spotted Cetus Guard 22121 | -6/Cetus | Spotted Cetus Guard 22131 | -6/Cetus | Allies destroyed Cetus Guard 22131 | -6/Cetus | Allies destroyed Cetus Guard 22136 | -6/Cetus | Allies destroyed Cetus Guard 22146 | -6/Cetus | Allies destroyed Cetus Guard 22237 | -6/Cetus | Started Cetus Manufacturing Module 22249 | -6/Cetus | Escorted A7 to Cetus Mainframe 22262 | -6/Cetus | Manufactured an Enhanced Grunt 22284 | -6/Cetus | Discovered new exit (range 16) 22287 | -6/Cetus | Manufactured an Enhanced Grunt 22312 | -6/Cetus | Manufactured an Enhanced Grunt 22336 | -6/Cetus | Spotted Cetus Guard 22337 | -6/Cetus | Manufactured an Enhanced Grunt 22340 | -6/Cetus | Spotted Cetus Guard 22340 | -6/Cetus | Spotted Cetus Guard 22341 | -6/Cetus | Allies destroyed Cetus Guard 22341 | -6/Cetus | Spotted Cetus Guard 22346 | -6/Cetus | Allies destroyed Cetus Guard 22349 | -6/Cetus | Discovered exit to Factory (range 16) 22358 | -6/Cetus | Assimilating Cetus Guard into Collective. 22362 | -6/Cetus | Manufactured an Enhanced Grunt 22364 | -6/Cetus | Assimilating Cetus Guard into Collective. 22367 | -6/Cetus | Scared off Revision 17 22447 | -6/Cetus | Identified exit to Archives 22488 | -6/Cetus | Entered Archives 22488 | -6/Archives | Accompanied by 17 allies (A7) 22493 | -6/Archives | Received a hacking code to weaken MAIN.C 22501 | -6/Archives | Assimilating Enhanced Grunt into Collective. 22537 | -6/Archives | Assimilating Enhanced Grunt into Collective. 22553 | -6/Archives | Discovered new exit (range 22) 22559 | -6/Archives | Discovered new exit (range 26) 22570 | -6/Archives | Lost 6 allies 22648 | -6/Archives | Discovered exit to Factory (range 15) 22731 | -6/Archives | Identified exit to Hub_04(d) 23214 | -6/Archives | Entered Hub_04(d) 23214 | -6/Hub_04(d) | Accompanied by 10 allies 23256 | -6/Hub_04(d) | Retrieved Zion intel report: Emergency Access 23345 | -6/Hub_04(d) | Retrieved Zion intel report: Trap Installations 23368 | -6/Hub_04(d) | Retrieved Zion intel report: Component Schematics 23372 | -6/Hub_04(d) | Discovered exit to Factory (range 12) 23375 | -6/Hub_04(d) | Retrieved Zion intel report: Unaware Schematics 23392 | -6/Hub_04(d) | Retrieved Zion intel report: Unaware Schematics 23517 | -6/Hub_04(d) | Retrieved Zion intel report: Component Schematics 23593 | -6/Hub_04(d) | Discovered exit to Factory (range 6) 23602 | -6/Hub_04(d) | Assimilating Enhanced Grunt into Collective. 23658 | -6/Hub_04(d) | Discovered exit to Factory (range 13) 23672 | -6/Hub_04(d) | Garrison activated, responded to threat 23711 | -6/Hub_04(d) | Retrieved Zion intel report: Guard Positions 23807 | -6/Hub_04(d) | Network Hub disabled 23873 | -6/Hub_04(d) | Build established: Assassin 23882 | -6/Hub_04(d) | Network Hub disabled 23905 | -6/Hub_04(d) | Retrieved Zion intel report: Depthwide Sectors/-5 23906 | -6/Hub_04(d) | Zion Light squad teleported in 23923 | -6/Hub_04(d) | Spotted Lightning 23923 | -6/Hub_04(d) | Spotted Lightning 23927 | -6/Hub_04(d) | Spotted Lightning 23956 | -6/Hub_04(d) | Assimilating Lightning into Collective. 23972 | -6/Hub_04(d) | Assimilating Lightning into Collective. 23978 | -6/Hub_04(d) | Allies destroyed Lightning 23984 | -6/Hub_04(d) | Found Prototype Protection 23984 | -6/Hub_04(d) | Identified Zio. Weapon Casing 23985 | -6/Hub_04(d) | Lost 5 allies 24025 | -6/Hub_04(d) | Spotted Lightning 24031 | -6/Hub_04(d) | Spotted Lightning 24037 | -6/Hub_04(d) | Network Hub disabled 24071 | -6/Hub_04(d) | Spotted Lightning 24086 | -6/Hub_04(d) | Allies destroyed Lightning 24105 | -6/Hub_04(d) | Allies destroyed Lightning 24111 | -6/Hub_04(d) | Allies destroyed Lightning 24112 | -6/Hub_04(d) | Found Prototype Energy Cannon 24127 | -6/Hub_04(d) | Assimilating Hacker 5d into Collective. 24236 | -6/Hub_04(d) | Build established: Mutant 24264 | -6/Hub_04(d) | First assault squad dispatched 24273 | -6/Hub_04(d) | Assimilating Angel 5a into Collective. 24331 | -6/Hub_04(d) | Network Hub disabled 24416 | -6/Hub_04(d) | System corruption reached 10% 24421 | -6/Hub_04(d) | Entered Factory 24421 | -5/Factory | Accompanied by 5 allies 24421 | -5/Factory | Evolved 2 slots: Propulsion x1, Utility x1 24422 | -5/Factory | Identified exit to Upper Caves 24483 | -5/Factory | Garrison activated, responded to threat 24543 | -5/Factory | Spotted B-75 Beast 24568 | -5/Factory | Allies destroyed B-75 Beast 24721 | -5/Factory | First assault squad dispatched 24916 | -5/Factory | Build established: Assassin 24945 | -5/Factory | Assimilating Sage 6a into Collective. 24980 | -5/Factory | Entered Upper Caves 24980 | -5/Upper Caves | Accompanied by 5 allies 24998 | -5/Upper Caves | Identified EMDS 25029 | -5/Upper Caves | Identified Active Sensor Suite 25487 | -5/Upper Caves | Identified exit to Upper Caves 25496 | -5/Upper Caves | Entered an active Warlord outpost 25512 | -5/Upper Caves | Learned Research security intel 26202 | -5/Upper Caves | Found Alien Artifact 26695 | -5/Upper Caves | Attracted the attention of an 0b10 checkpoint 26920 | -5/Upper Caves | Entered another Upper Caves area 26920 | -5/Upper Caves | Accompanied by 5 allies 26972 | -5/Upper Caves | Encountered a Warlord checkpoint 27029 | -5/Upper Caves | Learned Factory emergency access door positions 27125 | -5/Upper Caves | Attracted the attention of an 0b10 checkpoint 27442 | -5/Upper Caves | Discovered new exit (range 14) 27458 | -5/Upper Caves | Identified exit to Zhirov 28085 | -5/Upper Caves | Discovered new exit (range 8) 28094 | -5/Upper Caves | Identified exit to Factory 28256 | -5/Upper Caves | Spotted B-75 Beast 28264 | -5/Upper Caves | Allies destroyed B-75 Beast 28472 | -5/Upper Caves | Entered Zhirov 28472 | -5/Zhirov | Accompanied by 4 allies 28472 | -5/Zhirov | Discovered new exit (range 3) 28497 | -5/Zhirov | Met Zhirov 28526 | -5/Zhirov | Learned location of Quarantine (-3) 28526 | -5/Zhirov | Learned location of Testing (-2) 28526 | -5/Zhirov | Learned location of Command (-1) 28535 | -5/Zhirov | Zhirov requested help retrieving the SGEMP Prototype 28616 | -5/Zhirov | Found Alien Artifact 28616 | -5/Zhirov | Identified Integrated Reactor 28616 | -5/Zhirov | Installed Integrated Reactor, increased core energy generation (+10) 28632 | -5/Zhirov | Found Alien Artifact 28719 | -5/Zhirov | Identified exit to Proximity Caves 28720 | -5/Zhirov | Entered Proximity Caves 28720 | -4/Proximity Caves | Accompanied by 4 allies 28876 | -4/Proximity Caves | Build established: Mutant 29737 | -4/Proximity Caves | Discovered exit to Factory (range 15) 29811 | -4/Proximity Caves | Entered Factory 29811 | -4/Factory | Accompanied by 4 allies 29811 | -4/Factory | Evolved 2 slots: Propulsion x1, Utility x1 29812 | -4/Factory | Identified exit to Upper Caves 29907 | -4/Factory | Assimilating Archangel 7a into Collective. 30060 | -4/Factory | Found Quantum Capacitor 30118 | -4/Factory | Build established: Assassin 30481 | -4/Factory | Assimilating Sage 7a into Collective. 30643 | -4/Factory | Garrison activated, responded to threat 30802 | -4/Factory | Entered Upper Caves 30802 | -4/Upper Caves | Accompanied by 5 allies 31445 | -4/Upper Caves | A Derelict revealed a hidden shortcut to "reach the base" 31879 | -4/Upper Caves | Spotted B-86 Titan 31893 | -4/Upper Caves | Allies destroyed B-86 Titan 31981 | -4/Upper Caves | Discovered new exit (range 13) 32256 | -4/Upper Caves | Identified exit to Upper Caves 32293 | -4/Upper Caves | Entered another Upper Caves area 32293 | -4/Upper Caves | Accompanied by 5 allies 32353 | -4/Upper Caves | Discovered new exit (range 5) 32359 | -4/Upper Caves | Identified exit to Research 32474 | -4/Upper Caves | Attracted the attention of an 0b10 outpost 33290 | -4/Upper Caves | Discovered new exit (range 10) 33293 | -4/Upper Caves | Attracted the attention of an 0b10 checkpoint 33308 | -4/Upper Caves | Learned location of 1 exit from Research 33333 | -4/Upper Caves | Identified exit to Warlord 33769 | -4/Upper Caves | Entered Warlord 33769 | -4/Warlord | Accompanied by 3 allies 33809 | -4/Warlord | System corruption reached 10% 33815 | -4/Warlord | System corruption cleaned by Quarantine Array 34400 | -4/Warlord | Warlord's base attacked by MAIN.C 34430 | -4/Warlord | Found Prototype Energy Cannon 34432 | -4/Warlord | Found Prototype Energy Cannon 34528 | -4/Warlord | Identified Vortex Cannon (x2) 34670 | -4/Warlord | Found Prototype Hackware 34676 | -4/Warlord | Found Prototype Device 34676 | -4/Warlord | Identified Exp. Cloaking Device 34681 | -4/Warlord | Lost 11 allies 34681 | -4/Warlord | Found Prototype Reactor 34687 | -4/Warlord | Found Prototype Device 34687 | -4/Warlord | Identified Exp. Focal Shield 34750 | -4/Warlord | Warlord forces counterattacked 34813 | -4/Warlord | Build established: Mutant 34821 | -4/Warlord | Spotted Executioner 34831 | -4/Warlord | Allies destroyed Executioner 34838 | -4/Warlord | Assimilating Archangel 7b into Collective. 34858 | -4/Warlord | Spotted Executioner 34879 | -4/Warlord | Assimilating Executioner into Collective. 34899 | -4/Warlord | Lost 22 allies 34899 | -4/Warlord | Discovered new exit (range 12) 34902 | -4/Warlord | Spotted Executioner 34910 | -4/Warlord | Spotted Executioner 34924 | -4/Warlord | Allies destroyed Executioner 34931 | -4/Warlord | Assimilating Beamer 7a into Collective. 34938 | -4/Warlord | Found Prototype Processor 34938 | -4/Warlord | Identified Exp. Core Analyzer 34951 | -4/Warlord | Lost 7 allies 34971 | -4/Warlord | Identified exit to Proximity Caves 34982 | -4/Warlord | Entered Proximity Caves 34982 | -3/Proximity Caves | Accompanied by 3 allies 34984 | -3/Proximity Caves | Attracted the attention of an 0b10 checkpoint 35294 | -3/Proximity Caves | Build established: Assassin 35333 | -3/Proximity Caves | Spotted B-86 Titan 35392 | -3/Proximity Caves | Assimilating Titan 8a into Collective. 35753 | -3/Proximity Caves | Discovered exit to Research (range 13) 35946 | -3/Proximity Caves | Entered Research 35946 | -3/Research | Accompanied by 3 allies 35946 | -3/Research | Evolved 2 slots: Power x1, Utility x1 35947 | -3/Research | Identified exit to Armory 35948 | -3/Research | Identified exit to Quarantine 36101 | -3/Research | Assimilating Master 8a into Collective. 36273 | -3/Research | Assimilating Beamer 8a into Collective. 36306 | -3/Research | Identified Transdimensional Reconstructor 36306 | -3/Research | Warped through subspace 36309 | -3/Research | Lost 3 parts (2u1w) 36322 | -3/Research | Lost 4 allies 36366 | -3/Research | Assimilating Master 8b into Collective. 36390 | -3/Research | Found Adv. Powered Armor 36392 | -3/Research | Found Adv. Powered Armor 36394 | -3/Research | Found Adv. Powered Armor 36397 | -3/Research | Found Adv. Powered Armor 36521 | -3/Research | Entered Armory 36521 | -3/Armory | Accompanied by 1 ally 36536 | -3/Armory | Found Hvy. Reflective Plating 36557 | -3/Armory | Build established: Mutant 36612 | -3/Armory | Zion Light squad teleported in 36913 | -3/Armory | Assimilating Master 8c into Collective. 36922 | -3/Armory | Assimilating Master 8d into Collective. 36937 | -3/Armory | Assimilating Master 8e into Collective. 36958 | -3/Armory | Lost 4 allies 37051 | -3/Armory | Retrieved Zion intel report: Component Schematics 37065 | -3/Armory | Discovered new exit (range 4) 37069 | -3/Armory | Identified exit to Research 37080 | -3/Armory | Entered Research 37080 | -2/Research | Accompanied by 3 allies 37080 | -2/Research | Evolved 2 slots: Propulsion x1, Utility x1 37095 | -2/Research | Identified Ghost Barrier 37191 | -2/Research | Garrison activated, responded to threat 37259 | -2/Research | Unchained authorized (GL-D0S) 37263 | -2/Research | Spotted B-90 Cyclops 37270 | -2/Research | Destroyed B-90 Cyclops 37450 | -2/Research | Retrieved Zion intel report: Branch Access 37450 | -2/Research | Identified exit to Testing 37512 | -2/Research | Zion Heavy squad teleported in 37580 | -2/Research | First assault squad dispatched 37619 | -2/Research | Zion Resource Resupply teleported in 37649 | -2/Research | Entered Testing 37649 | -2/Testing | Accompanied by 2 allies 37705 | -2/Testing | Retrieved Zion intel report: Branch Access 37744 | -2/Testing | Found Prototype Energy Cannon 37795 | -2/Testing | Retrieved Zion intel report: Main Access 37795 | -2/Testing | Identified exit to Access 37893 | -2/Testing | Found Prototype Ballistic Cannon 37972 | -2/Testing | Retrieved Zion intel report: Unaware Schematics 38026 | -2/Testing | Assimilating Master 9a into Collective. 38029 | -2/Testing | Assimilating Master 9b into Collective. 38041 | -2/Testing | Assimilating Master 9c into Collective. 38191 | -2/Testing | Retrieved Zion intel report: Active Terminals 38277 | -2/Testing | Identified Perforator 38277 | -2/Testing | Identified Imp. Potential Cannon 38277 | -2/Testing | Identified Vortex Chain Reactor 38428 | -2/Testing | Assimilating Master 9d into Collective. 38804 | -2/Testing | Retrieved Zion intel report: Depthwide Sectors/-2 38880 | -2/Testing | Assimilating Master 9e into Collective. 38888 | -2/Testing | System corruption reached 10% 38892 | -2/Testing | Assimilating Master 9f into Collective. 38903 | -2/Testing | Spotted PL-07AL0AIU0V 38952 | -2/Testing | Retrieved Zion intel report: Prototype Schematics 38999 | -2/Testing | Allies destroyed PL-07AL0AIU0V 39011 | -2/Testing | Terminal network hard line cut 39152 | -2/Testing | Assimilating Master 9g into Collective. 39170 | -2/Testing | Found Prototype Hackware 39404 | -2/Testing | Entered Access 39404 | -1/Access | Accompanied by 2 allies 39404 | -1/Access | Evolved 2 slots: Power x1, Weapon x1 39557 | -1/Access | Unchained authorized (GL-D0S) 39570 | -1/Access | Garrison activated, responded to threat 39570 | -1/Access | Assimilating Master 10a into Collective. 39706 | -1/Access | Build established: Generator-Mutant 39767 | -1/Access | Retrieved Zion intel report: Emergency Access 40081 | -1/Access | Retrieved Zion intel report: Active Garrisons 40082 | -1/Access | Zion Experimental squad teleported in 40364 | -1/Access | Identified System Mapper 40463 | -1/Access | Assimilating Master 10b into Collective. 40472 | -1/Access | Assimilating Master 10c into Collective. 40590 | -1/Access | Spotted B-99 Colossus 40614 | -1/Access | Destroyed B-99 Colossus 40642 | -1/Access | Found Prototype Ballistic Gun 40642 | -1/Access | Identified Multirail 40654 | -1/Access | First assault squad dispatched 40686 | -1/Access | Assimilating Master 10d into Collective. 40698 | -1/Access | Assimilating Master 10e into Collective. 40701 | -1/Access | Assimilating Master 10f into Collective. 40736 | -1/Access | Spotted B-99 Colossus 40759 | -1/Access | Assimilating Warden 10a into Collective. 40766 | -1/Access | Destroyed B-99 Colossus 40838 | -1/Access | Retrieved Zion intel report: Depthwide Sectors/-1 40941 | -1/Access | Terminal network hard line cut 41092 | -1/Access | Assimilating Master 10g into Collective. 41095 | -1/Access | Assimilating Master 10h into Collective. 41159 | -1/Access | Assimilating Terminator 10a into Collective. 41162 | -1/Access | Assimilating Terminator 10b into Collective. 41305 | -1/Access | Assimilating Warden 10b into Collective. 41367 | -1/Access | Discovered new exit (range 8) 41379 | -1/Access | Identified exit to Command 41830 | -1/Access | Entered Command 41898 | -1/Command | Assimilating Enforcer 10a into Collective. 41909 | -1/Command | Assimilating Enforcer 10b into Collective. 41970 | -1/Command | Retrieved Zion intel report: Trap Installations 42002 | -1/Command | Retrieved Zion intel report: Active Terminals 42080 | -1/Command | First assault squad dispatched 42086 | -1/Command | Assimilating Master 10i into Collective. 42089 | -1/Command | Assimilating Master 10j into Collective. 42134 | -1/Command | Assimilating Master 10k into Collective. 42352 | -1/Command | Retrieved Zion intel report: Unaware Analyses 42366 | -1/Command | Retrieved Zion intel report: Unaware Analyses 42496 | -1/Command | Assimilating Terminator 10c into Collective. 42501 | -1/Command | Assimilating Terminator 10d into Collective. 42514 | -1/Command | Retrieved Zion intel report: Guard Positions 42581 | -1/Command | Spotted Alpha 7 42583 | -1/Command | Spotted Striker 42587 | -1/Command | Spotted Alpha 7 42594 | -1/Command | Spotted Executioner 42608 | -1/Command | Assimilating Striker into Collective. 42611 | -1/Command | Spotted Executioner 42630 | -1/Command | Lost 3 allies 42674 | -1/Command | Destroyed Alpha 7 42722 | -1/Command | Assimilating Warden 10c into Collective. 42751 | -1/Command | Assimilating Master 10l into Collective. 42752 | -1/Command | System corruption reached 10% 42759 | -1/Command | Assimilating Master 10m into Collective. 42853 | -1/Command | Spotted B-99 Colossus 42912 | -1/Command | Lost 3 allies 42941 | -1/Command | Core integrity fell below 50% 42985 | -1/Command | Destroyed B-99 Colossus 43053 | -1/Command | Released all parts (11) 43058 | -1/Command | Core integrity fell below 20% 43073 | -1/Command | Destroyed by H-88 Terminator with Heavy Machine Gun Last Messages --------------- 43055_ System corrupted: Heat flow error (+286). 43057_ Slug penetrates Wall. 43058_ Overheating: Core damaged (-160). 43058_ Acquired Antigrav System. 43061_ Overheating: Energy bleed (-18). 43062_ Antigrav System broken. 43062_ Overheating: Short circuit. 43062_ Acquired Antigrav System. 43065_ Slug penetrates Wall. 43067_ Antigrav System destroyed. 43068_ Penetrated by Slug. 43069_ M-36 Artificer repairs G-73 Enforcer. 43070_ Antigrav System destroyed. 43070_ Penetrated by Slug. 43070_ Antigrav System destroyed. 43071_ Broken Antigrav System destroyed. 43072_ M-36 Artificer repairs G-73 Enforcer Myomer Leg. 43072_ Acquired Ghost Barrier. 43073_ Penetrated by Slug. Map ----- +----------------------------------------------------+ | ???????### "### # #???# #?????????????????? | | ?????? + + ########???# #?????????????????? | | ?????? ?+ " %############ #?????????????####? | | ?????? # "% # ## #?????????????# #? | | ????????+ "% %=[#% #" ##?????????#### #? | | ????????## #" %*" "" " ###########"## #? | | ????????# " !" """" #? | | ????????# # " "% """" #? | | ????????????# " " "" [ ############# #? | | ????????????# " " #####???????# #? | | ????????????# # " ????????# #? | | ???????????## "%=" ?????????# #? | | ???????????# !|! ;; ;; ??????????# #? | | ???????????# % ; [ " ??????????? ? | | ???????????## % " ???????????? " ? | | ???????????## "????????????? + | | ??????????## "#????????????? # | | ??????????# ???????????????##### | | ?????????## ** % #????????????????????? | | ?????????# * ; ##????????????????????? | | ????????# ** h =; ??????????????????????? | | ????????# !!|!#??????????????????????? | | ???????# *!]!###????????????????????? | | ???????# # ]*!*# #????????????????????? | | ????????# !!h !#?????????????????????? | | ????????## ; !*!@##?????????????????????? | | ?????????##############mg=#####??????????????????? | | ?????????????????# ] pg #??????????????????? | | ?????????????????# ]] bl % #??????????????????? | | ?????????????????# ]] #??????????????????? | | ?????????????????# #??????????????????? | | ?????????????????# #??????????????????? | | ?????????????????##############??????????????????? | | | | | | | | | | | | | | | | | | | | | | | | | | | | | | | | | | | +----------------------------------------------------+ Best States ------------- Heat Dissipation 90 Coolant Potential 50 Energy Generation 105 Energy Capacity 1390 Matter Stores 600 Matter Capacity 600 Sight Range 16 Robot Scan Range 20 Terrain Scan Range 20 Terrain Scan Density 10 Jamming Range 12 Cloak Strength 4 Additional Mass Support 12 Armor Coverage 1000 Resistance: KI 30 Resistance: TH 25 Propulsion Shielding 66 Weapon Shielding 90 Weapon Cycling 15 Evasion (%) 57 Recoil Reduction 6 Offensive Hacking 10 Authchip Count 3 Item Schematics ----------------- Hcp. Storage Unit | -10/Materials | Hacked Reactive Plating | -8/Materials | Scanalyzed Powered Armor | -8/Storage | Hacked Kinecellerator | -7/Zion | Archive Fission Core | -7/Zion | Archive Recalibrator | -7/Zion | Archive Lgt. Fission Core | -7/Zion | Archive Imp. Deuterium Engine | -7/Zion | Archive Proton Cannon | -7/Zion | Archive Neutrino Core | -7/Zion | Archive Dynamic Insulation System | -7/Zion | Archive Stasis Canceller | -7/Zion | Archive Hvy. Ion Cannon | -7/Zion | Archive IFF Parser | -7/Zion | Archive Corruption Screen | -7/Zion | Archive Fusion Compressor | -7/Zion | Archive Arm. Huge Wheel | -7/Zion | Archive Lrn. Proton Cannon | -7/Zion | Archive Med. Reactive Plating | -6/Factory | Scanalyzed Exp. Targeting Computer | -6/Extension | Z-intel Prc. Grenade Launcher | -6/Extension | Z-intel Cld. VTOL Module | -6/Extension | Z-intel Imp. Airjet | -6/Extension | Z-intel F-cell Engine | -6/Extension | Z-intel Cld. Pulse Rifle | -6/Extension | Z-intel Force Rifle | -6/Extension | Z-intel Hvy. Deuterium Engine | -6/Extension | Z-intel Ion Burst Cannon | -6/Extension | Z-intel Cld. Aerolev Unit | -6/Extension | Z-intel Prc. Shock Rifle | -6/Extension | Z-intel Antimatter Cannon | -6/Extension | Z-intel Prc. Assault Rifle | -6/Extension | Z-intel Imp. Cesium-ion Thruster | -6/Extension | Z-intel Prc. Rocket Launcher | -6/Extension | Z-intel Impact Mace | -6/Extension | Z-intel Shock Maul | -6/Extension | Z-intel Thermic Laser | -6/Hub_04(d) | Z-intel Drone Bay | -6/Hub_04(d) | Z-intel Component Analysis Suite | -6/Hub_04(d) | Z-intel Plasma Rifle | -6/Hub_04(d) | Z-intel Adv. Terrain Scanner | -6/Hub_04(d) | Z-intel Imp. System Shield | -6/Hub_04(d) | Z-intel Gravmag System | -6/Hub_04(d) | Z-intel Imp. Medium Armor Plating | -6/Hub_04(d) | Z-intel Com. Matter Pod | -6/Hub_04(d) | Z-intel EM Shield | -6/Hub_04(d) | Z-intel Lrg. Storage Unit | -6/Hub_04(d) | Z-intel Katana | -6/Hub_04(d) | Z-intel Imp. Field Recycling Unit | -6/Hub_04(d) | Z-intel Phase Shifter | -6/Hub_04(d) | Z-intel Flexi-carbon Leg | -6/Hub_04(d) | Z-intel Greatsword | -6/Hub_04(d) | Z-intel Imp. EM Pulse Cannon | -6/Hub_04(d) | Z-intel Hvy. Mace | -6/Hub_04(d) | Z-intel Adv. Treads | -6/Hub_04(d) | Z-intel ECM Suite | -6/Hub_04(d) | Z-intel Gauss Cannon | -6/Hub_04(d) | Z-intel Imp. Light Armor Plating | -6/Hub_04(d) | Z-intel Adv. Weight Redist. System | -6/Hub_04(d) | Z-intel Power Sword | -6/Hub_04(d) | Z-intel Imp. Utility Shielding | -6/Hub_04(d) | Z-intel Imp. Titanium Leg | -6/Hub_04(d) | Z-intel Wheel | -6/Hub_04(d) | Z-intel Lgt. Angular Momentum Engine | -6/Hub_04(d) | Z-intel Hvy. Insulated Plating | -6/Hub_04(d) | Z-intel Arc Projector | -6/Hub_04(d) | Z-intel Assault Drone Bay | -5/Zhirov | Free Exp. Heat Sink | -5/Zhirov | Free Exp. Optical Array | -5/Zhirov | Free Imp. Arc Thrower | -5/Zhirov | Free Huge Storage Unit | -3/Armory | Z-intel Quantum Capacitor | -3/Armory | Z-intel Adv. Plasma Cannon | -3/Armory | Z-intel Imp. Focal Shield | -3/Armory | Z-intel Imp. Gyrokinetic Inverter | -3/Armory | Z-intel Adv. Datajack | -3/Armory | Z-intel Biometal Medium Treads | -3/Armory | Z-intel Hpw. Tractor Beam | -3/Armory | Z-intel Imp. System Guard | -3/Armory | Z-intel Adv. VSS Leg | -3/Armory | Z-intel Mic. Antimatter Reactor | -3/Armory | Z-intel Adv. Hacking Suite | -3/Armory | Z-intel Com. Battery | -3/Armory | Z-intel Hrd. Medium Armor Plating | -3/Armory | Z-intel Hvy. Tesla Rifle | -2/Testing | Z-intel Prc. Energy Filter | -2/Testing | Z-intel Com. Particle Reactor | -2/Testing | Z-intel Exp. Core Analyzer | -2/Testing | Z-intel Exp. Myomer Leg | -2/Testing | Z-intel Ionic Axe | -2/Testing | Z-intel Exp. Hacking Suite | -2/Testing | Z-intel Hvy. Dispersion Rifle | -2/Testing | Z-intel Enh. Gamma Bomb Array | -2/Testing | Z-intel Adv. EM Disruption Field | -2/Testing | Z-intel Robot Schematics ------------------ S-27 Virus | -7/Zion | Archive T-07 Excavator | -7/Zion | Archive X-62 Marksman | -7/Zion | Archive D-83 Annihilator | -7/Zion | Archive Y-54 Guardian | -6/Hub_04(d) | Z-intel R-06 Scavenger | -6/Hub_04(d) | Z-intel G-50 Soldier | -6/Hub_04(d) | Z-intel R-10 Processor | -6/Hub_04(d) | Z-intel M-22 Extractor | -6/Hub_04(d) | Z-intel K-01 Serf | -6/Hub_04(d) | Z-intel B-48 Gladiator | -6/Hub_04(d) | Z-intel G-67 Veteran | -2/Testing | Z-intel G-73 Enforcer | -2/Testing | Z-intel C-55 Analyst | -2/Testing | Z-intel Fabricated ------------ Hcp. Storage Unit | x1 | -7/Factory | Authchip Repaired ---------- Lgt. Treads | 36% | -10/Materials Spk. Treads | 36% | -8/Materials Ion Cannon | 53% | -8/Storage | Broken Imp. Propulsion Shielding | 42% | -8/Storage Seismic Detector | 30% | -8/Storage Studied --------- Minigun | -8/Materials | Hacked Autogun | -8/Materials | Hacked Ion Cannon | -8/Materials | Hacked Missile Launcher | -8/Materials | Hacked Deuterium Engine | -8/Materials | Hacked Nuclear Core | -8/Materials | Hacked Arm. Huge Wheel | -6/Factory | Hacked Wheel | -6/Factory | Hacked Flexi-carbon Leg | -6/Factory | Hacked Arm. Wheel | -6/Factory | Hacked Enh. Nova Cannon | -2/Research | Hacked Particle Reactor | -2/Testing | Hacked Biometal Heavy Treads | -2/Testing | Hacked Alien Tech Used ----------------- Integrated Reactor Transdimensional Reconstructor Achievements -------------- 404 Some Acronyms Are Better Than Others Challenges ------------ None Game ------ Seed NodeScrapoidCannon Manual? 0 Play Time 06:47:21 Cumulative 593.5 hours Start 2026.02.19 @ 16:44:19 End 2026.02.20 @ 14:22:59 Sessions 9 Manual Loads 0 Difficulty Rogue Special Mode None Game No. 336 Rogue 336 Adventurer 0 Explorer 0 Win Type - Total 21 Types 12/0/6/0/0/0/1/2/0/0 Lore% 89 Gallery% 82 Achievement% 71 Wizard Run 0 Options --------- Layout 1 ASCII 0 Keyboard 0 Movement Numpad Keybinds 0 Fullscreen 2 Font 24/Smallcaps Map View 50x40 Zoom Use 0% Tactical HUD 1 Map Filters NONE Filters NONE Steam 1 RUN: 42635b15-0a40-4392-8b3f-65f05c335a33